{"text_format":"1","workbook":"xlsx","n_sheets":2,"sheets":["Emploi du temps","Liste des interventions"],"not_rendered":{"charts":0,"images":1,"macros":1,"external_links":0,"defined_names":13,"comments":0,"pivot_tables":0},"unopened":[],"bounds":{"document_bytes":16777216,"sheet_cells":100000,"rows_first":2000,"rows_last":500,"rows_between":2000,"halvings":0,"cell_chars":16384,"cell_head_chars":4096},"cells_cut":0,"cells_raw":0,"read":"whole","date_system":"1900"}

{"sheet":"Emploi du temps","index":0,"n_rows":64,"n_cols":9,"rows_kept":64,"cut":false,"hidden":false,"merged":[[1,1,2,5]]}
[]
[null,"Emploi du temps pour …..",null,null,null,null,"DÉBUT","INTERVALLE DE TEMPS"]
[null,null,null,null,null,null,"08:00:00","15 MIN",{"$f":"--LEFT(texteminutes,2)","v":15}]
[null,"HEURE","DIMANCHE","LUNDI","MARDI","MERCREDI","JEUDI","VENDREDI","SAMEDI"]
[null,{"$f":"Début","v":"08:00:00"},{"$f":"IFERROR(INDEX(tblListedesclasses[],MATCH(SUMPRODUCT((tblListedesclasses[JOUR]=tblHoraires[[#Headers],[DIMANCHE]])*($B5>=tblListedesclasses[HEURE DE DÉBUT])*($B5<=tblListedesclasses[HEURE DE FIN]),tblListedesclasses[UNIQUE]),tblListedesclasses[UNIQUE],0),2),0)","v":0},{"$f":"IFERROR(INDEX(tblListedesclasses[],MATCH(SUMPRODUCT((tblListedesclasses[JOUR]=tblHoraires[[#Headers],[LUNDI]])*($B5>=tblListedesclasses[HEURE DE DÉBUT])*($B5<=tblListedesclasses[HEURE DE FIN]),tblListedesclasses[UNIQUE]),tblListedesclasses[UNIQUE],0),2),0)","v":0},{"$f":"IFERROR(INDEX(tblListedesclasses[],MATCH(SUMPRODUCT((tblListedesclasses[JOUR]=tblHoraires[[#Headers],[MARDI]])*($B5>=tblListedesclasses[HEURE DE DÉBUT])*($B5<=tblListedesclasses[HEURE DE FIN]),tblListedesclasses[UNIQUE]),tblListedesclasses[UNIQUE],0),2),0)","v":0},{"$f":"IFERROR(INDEX(tblListedesclasses[],MATCH(SUMPRODUCT((tblListedesclasses[JOUR]=tblHoraires[[#Headers],[MERCREDI]])*($B5>=tblListedesclasses[HEURE DE DÉBUT])*($B5<=tblListedesclasses[HEURE DE FIN]),tblListedesclasses[UNIQUE]),tblListedesclasses[UNIQUE],0),2),0)","v":0},{"$f":"IFERROR(INDEX(tblListedesclasses[],MATCH(SUMPRODUCT((tblListedesclasses[JOUR]=tblHoraires[[#Headers],[JEUDI]])*($B5>=tblListedesclasses[HEURE DE DÉBUT])*($B5<=tblListedesclasses[HEURE DE FIN]),tblListedesclasses[UNIQUE]),tblListedesclasses[UNIQUE],0),2),0)","v":0},{"$f":"IFERROR(INDEX(tblListedesclasses[],MATCH(SUMPRODUCT((tblListedesclasses[JOUR]=tblHoraires[[#Headers],[VENDREDI]])*($B5>=tblListedesclasses[HEURE DE DÉBUT])*($B5<=tblListedesclasses[HEURE DE FIN]),tblListedesclasses[UNIQUE]),tblListedesclasses[UNIQUE],0),2),0)","v":0},{"$f":"IFERROR(INDEX(tblListedesclasses[],MATCH(SUMPRODUCT((tblListedesclasses[JOUR]=tblHoraires[[#Headers],[SAMEDI]])*($B5>=tblListedesclasses[HEURE DE DÉBUT])*($B5<=tblListedesclasses[HEURE DE FIN]),tblListedesclasses[UNIQUE]),tblListedesclasses[UNIQUE],0),2),0)","v":0}]
[null,{"$f":"B5+TIME(0,Intervalleminutes,0)","v":"08:15:00"},{"$f":"IFERROR(INDEX(tblListedesclasses[],MATCH(SUMPRODUCT((tblListedesclasses[JOUR]=tblHoraires[[#Headers],[DIMANCHE]])*($B6>=tblListedesclasses[HEURE DE DÉBUT])*($B6<=tblListedesclasses[HEURE DE FIN]),tblListedesclasses[UNIQUE]),tblListedesclasses[UNIQUE],0),2),0)","v":0},{"$f":"IFERROR(INDEX(tblListedesclasses[],MATCH(SUMPRODUCT((tblListedesclasses[JOUR]=tblHoraires[[#Headers],[LUNDI]])*($B6>=tblListedesclasses[HEURE DE DÉBUT])*($B6<=tblListedesclasses[HEURE DE FIN]),tblListedesclasses[UNIQUE]),tblListedesclasses[UNIQUE],0),2),0)","v":0},{"$f":"IFERROR(INDEX(tblListedesclasses[],MATCH(SUMPRODUCT((tblListedesclasses[JOUR]=tblHoraires[[#Headers],[MARDI]])*($B6>=tblListedesclasses[HEURE DE DÉBUT])*($B6<=tblListedesclasses[HEURE DE FIN]),tblListedesclasses[UNIQUE]),tblListedesclasses[UNIQUE],0),2),0)","v":0},{"$f":"IFERROR(INDEX(tblListedesclasses[],MATCH(SUMPRODUCT((tblListedesclasses[JOUR]=tblHoraires[[#Headers],[MERCREDI]])*($B6>=tblListedesclasses[HEURE DE DÉBUT])*($B6<=tblListedesclasses[HEURE DE FIN]),tblListedesclasses[UNIQUE]),tblListedesclasses[UNIQUE],0),2),0)","v":0},{"$f":"IFERROR(INDEX(tblListedesclasses[],MATCH(SUMPRODUCT((tblListedesclasses[JOUR]=tblHoraires[[#Headers],[JEUDI]])*($B6>=tblListedesclasses[HEURE DE DÉBUT])*($B6<=tblListedesclasses[HEURE DE FIN]),tblListedesclasses[UNIQUE]),tblListedesclasses[UNIQUE],0),2),0)","v":0},{"$f":"IFERROR(INDEX(tblListedesclasses[],MATCH(SUMPRODUCT((tblListedesclasses[JOUR]=tblHoraires[[#Headers],[VENDREDI]])*($B6>=tblListedesclasses[HEURE DE DÉBUT])*($B6<=tblListedesclasses[HEURE DE FIN]),tblListedesclasses[UNIQUE]),tblListedesclasses[UNIQUE],0),2),0)","v":0},{"$f":"IFERROR(INDEX(tblListedesclasses[],MATCH(SUMPRODUCT((tblListedesclasses[JOUR]=tblHoraires[[#Headers],[SAMEDI]])*($B6>=tblListedesclasses[HEURE DE DÉBUT])*($B6<=tblListedesclasses[HEURE DE FIN]),tblListedesclasses[UNIQUE]),tblListedesclasses[UNIQUE],0),2),0)","v":0}]
[null,"08:30:00",{"$f":"IFERROR(INDEX(tblListedesclasses[],MATCH(SUMPRODUCT((tblListedesclasses[JOUR]=tblHoraires[[#Headers],[DIMANCHE]])*($B7>=tblListedesclasses[HEURE DE DÉBUT])*($B7<=tblListedesclasses[HEURE DE FIN]),tblListedesclasses[UNIQUE]),tblListedesclasses[UNIQUE],0),2),0)","v":0},{"$f":"IFERROR(INDEX(tblListedesclasses[],MATCH(SUMPRODUCT((tblListedesclasses[JOUR]=tblHoraires[[#Headers],[LUNDI]])*($B7>=tblListedesclasses[HEURE DE DÉBUT])*($B7<=tblListedesclasses[HEURE DE FIN]),tblListedesclasses[UNIQUE]),tblListedesclasses[UNIQUE],0),2),0)","v":0},{"$f":"IFERROR(INDEX(tblListedesclasses[],MATCH(SUMPRODUCT((tblListedesclasses[JOUR]=tblHoraires[[#Headers],[MARDI]])*($B7>=tblListedesclasses[HEURE DE DÉBUT])*($B7<=tblListedesclasses[HEURE DE FIN]),tblListedesclasses[UNIQUE]),tblListedesclasses[UNIQUE],0),2),0)","v":0},{"$f":"IFERROR(INDEX(tblListedesclasses[],MATCH(SUMPRODUCT((tblListedesclasses[JOUR]=tblHoraires[[#Headers],[MERCREDI]])*($B7>=tblListedesclasses[HEURE DE DÉBUT])*($B7<=tblListedesclasses[HEURE DE FIN]),tblListedesclasses[UNIQUE]),tblListedesclasses[UNIQUE],0),2),0)","v":0},{"$f":"IFERROR(INDEX(tblListedesclasses[],MATCH(SUMPRODUCT((tblListedesclasses[JOUR]=tblHoraires[[#Headers],[JEUDI]])*($B7>=tblListedesclasses[HEURE DE DÉBUT])*($B7<=tblListedesclasses[HEURE DE FIN]),tblListedesclasses[UNIQUE]),tblListedesclasses[UNIQUE],0),2),0)","v":0},{"$f":"IFERROR(INDEX(tblListedesclasses[],MATCH(SUMPRODUCT((tblListedesclasses[JOUR]=tblHoraires[[#Headers],[VENDREDI]])*($B7>=tblListedesclasses[HEURE DE DÉBUT])*($B7<=tblListedesclasses[HEURE DE FIN]),tblListedesclasses[UNIQUE]),tblListedesclasses[UNIQUE],0),2),0)","v":0},{"$f":"IFERROR(INDEX(tblListedesclasses[],MATCH(SUMPRODUCT((tblListedesclasses[JOUR]=tblHoraires[[#Headers],[SAMEDI]])*($B7>=tblListedesclasses[HEURE DE DÉBUT])*($B7<=tblListedesclasses[HEURE DE FIN]),tblListedesclasses[UNIQUE]),tblListedesclasses[UNIQUE],0),2),0)","v":0}]
[null,"08:45:00",{"$f":"IFERROR(INDEX(tblListedesclasses[],MATCH(SUMPRODUCT((tblListedesclasses[JOUR]=tblHoraires[[#Headers],[DIMANCHE]])*($B8>=tblListedesclasses[HEURE DE DÉBUT])*($B8<=tblListedesclasses[HEURE DE FIN]),tblListedesclasses[UNIQUE]),tblListedesclasses[UNIQUE],0),2),0)","v":0},{"$f":"IFERROR(INDEX(tblListedesclasses[],MATCH(SUMPRODUCT((tblListedesclasses[JOUR]=tblHoraires[[#Headers],[LUNDI]])*($B8>=tblListedesclasses[HEURE DE DÉBUT])*($B8<=tblListedesclasses[HEURE DE FIN]),tblListedesclasses[UNIQUE]),tblListedesclasses[UNIQUE],0),2),0)","v":0},{"$f":"IFERROR(INDEX(tblListedesclasses[],MATCH(SUMPRODUCT((tblListedesclasses[JOUR]=tblHoraires[[#Headers],[MARDI]])*($B8>=tblListedesclasses[HEURE DE DÉBUT])*($B8<=tblListedesclasses[HEURE DE FIN]),tblListedesclasses[UNIQUE]),tblListedesclasses[UNIQUE],0),2),0)","v":0},{"$f":"IFERROR(INDEX(tblListedesclasses[],MATCH(SUMPRODUCT((tblListedesclasses[JOUR]=tblHoraires[[#Headers],[MERCREDI]])*($B8>=tblListedesclasses[HEURE DE DÉBUT])*($B8<=tblListedesclasses[HEURE DE FIN]),tblListedesclasses[UNIQUE]),tblListedesclasses[UNIQUE],0),2),0)","v":0},{"$f":"IFERROR(INDEX(tblListedesclasses[],MATCH(SUMPRODUCT((tblListedesclasses[JOUR]=tblHoraires[[#Headers],[JEUDI]])*($B8>=tblListedesclasses[HEURE DE DÉBUT])*($B8<=tblListedesclasses[HEURE DE FIN]),tblListedesclasses[UNIQUE]),tblListedesclasses[UNIQUE],0),2),0)","v":0},{"$f":"IFERROR(INDEX(tblListedesclasses[],MATCH(SUMPRODUCT((tblListedesclasses[JOUR]=tblHoraires[[#Headers],[VENDREDI]])*($B8>=tblListedesclasses[HEURE DE DÉBUT])*($B8<=tblListedesclasses[HEURE DE FIN]),tblListedesclasses[UNIQUE]),tblListedesclasses[UNIQUE],0),2),0)","v":0},{"$f":"IFERROR(INDEX(tblListedesclasses[],MATCH(SUMPRODUCT((tblListedesclasses[JOUR]=tblHoraires[[#Headers],[SAMEDI]])*($B8>=tblListedesclasses[HEURE DE DÉBUT])*($B8<=tblListedesclasses[HEURE DE FIN]),tblListedesclasses[UNIQUE]),tblListedesclasses[UNIQUE],0),2),0)","v":0}]
[null,"09:00:00",{"$f":"IFERROR(INDEX(tblListedesclasses[],MATCH(SUMPRODUCT((tblListedesclasses[JOUR]=tblHoraires[[#Headers],[DIMANCHE]])*($B9>=tblListedesclasses[HEURE DE DÉBUT])*($B9<=tblListedesclasses[HEURE DE FIN]),tblListedesclasses[UNIQUE]),tblListedesclasses[UNIQUE],0),2),0)","v":0},{"$f":"IFERROR(INDEX(tblListedesclasses[],MATCH(SUMPRODUCT((tblListedesclasses[JOUR]=tblHoraires[[#Headers],[LUNDI]])*($B9>=tblListedesclasses[HEURE DE DÉBUT])*($B9<=tblListedesclasses[HEURE DE FIN]),tblListedesclasses[UNIQUE]),tblListedesclasses[UNIQUE],0),2),0)","v":"Alice"},{"$f":"IFERROR(INDEX(tblListedesclasses[],MATCH(SUMPRODUCT((tblListedesclasses[JOUR]=tblHoraires[[#Headers],[MARDI]])*($B9>=tblListedesclasses[HEURE DE DÉBUT])*($B9<=tblListedesclasses[HEURE DE FIN]),tblListedesclasses[UNIQUE]),tblListedesclasses[UNIQUE],0),2),0)","v":0},{"$f":"IFERROR(INDEX(tblListedesclasses[],MATCH(SUMPRODUCT((tblListedesclasses[JOUR]=tblHoraires[[#Headers],[MERCREDI]])*($B9>=tblListedesclasses[HEURE DE DÉBUT])*($B9<=tblListedesclasses[HEURE DE FIN]),tblListedesclasses[UNIQUE]),tblListedesclasses[UNIQUE],0),2),0)","v":0},{"$f":"IFERROR(INDEX(tblListedesclasses[],MATCH(SUMPRODUCT((tblListedesclasses[JOUR]=tblHoraires[[#Headers],[JEUDI]])*($B9>=tblListedesclasses[HEURE DE DÉBUT])*($B9<=tblListedesclasses[HEURE DE FIN]),tblListedesclasses[UNIQUE]),tblListedesclasses[UNIQUE],0),2),0)","v":0},{"$f":"IFERROR(INDEX(tblListedesclasses[],MATCH(SUMPRODUCT((tblListedesclasses[JOUR]=tblHoraires[[#Headers],[VENDREDI]])*($B9>=tblListedesclasses[HEURE DE DÉBUT])*($B9<=tblListedesclasses[HEURE DE FIN]),tblListedesclasses[UNIQUE]),tblListedesclasses[UNIQUE],0),2),0)","v":"Spitex"},{"$f":"IFERROR(INDEX(tblListedesclasses[],MATCH(SUMPRODUCT((tblListedesclasses[JOUR]=tblHoraires[[#Headers],[SAMEDI]])*($B9>=tblListedesclasses[HEURE DE DÉBUT])*($B9<=tblListedesclasses[HEURE DE FIN]),tblListedesclasses[UNIQUE]),tblListedesclasses[UNIQUE],0),2),0)","v":0}]
[null,"09:15:00",{"$f":"IFERROR(INDEX(tblListedesclasses[],MATCH(SUMPRODUCT((tblListedesclasses[JOUR]=tblHoraires[[#Headers],[DIMANCHE]])*($B10>=tblListedesclasses[HEURE DE DÉBUT])*($B10<=tblListedesclasses[HEURE DE FIN]),tblListedesclasses[UNIQUE]),tblListedesclasses[UNIQUE],0),2),0)","v":0},{"$f":"IFERROR(INDEX(tblListedesclasses[],MATCH(SUMPRODUCT((tblListedesclasses[JOUR]=tblHoraires[[#Headers],[LUNDI]])*($B10>=tblListedesclasses[HEURE DE DÉBUT])*($B10<=tblListedesclasses[HEURE DE FIN]),tblListedesclasses[UNIQUE]),tblListedesclasses[UNIQUE],0),2),0)","v":"Alice"},{"$f":"IFERROR(INDEX(tblListedesclasses[],MATCH(SUMPRODUCT((tblListedesclasses[JOUR]=tblHoraires[[#Headers],[MARDI]])*($B10>=tblListedesclasses[HEURE DE DÉBUT])*($B10<=tblListedesclasses[HEURE DE FIN]),tblListedesclasses[UNIQUE]),tblListedesclasses[UNIQUE],0),2),0)","v":0},{"$f":"IFERROR(INDEX(tblListedesclasses[],MATCH(SUMPRODUCT((tblListedesclasses[JOUR]=tblHoraires[[#Headers],[MERCREDI]])*($B10>=tblListedesclasses[HEURE DE DÉBUT])*($B10<=tblListedesclasses[HEURE DE FIN]),tblListedesclasses[UNIQUE]),tblListedesclasses[UNIQUE],0),2),0)","v":0},{"$f":"IFERROR(INDEX(tblListedesclasses[],MATCH(SUMPRODUCT((tblListedesclasses[JOUR]=tblHoraires[[#Headers],[JEUDI]])*($B10>=tblListedesclasses[HEURE DE DÉBUT])*($B10<=tblListedesclasses[HEURE DE FIN]),tblListedesclasses[UNIQUE]),tblListedesclasses[UNIQUE],0),2),0)","v":0},{"$f":"IFERROR(INDEX(tblListedesclasses[],MATCH(SUMPRODUCT((tblListedesclasses[JOUR]=tblHoraires[[#Headers],[VENDREDI]])*($B10>=tblListedesclasses[HEURE DE DÉBUT])*($B10<=tblListedesclasses[HEURE DE FIN]),tblListedesclasses[UNIQUE]),tblListedesclasses[UNIQUE],0),2),0)","v":"Spitex"},{"$f":"IFERROR(INDEX(tblListedesclasses[],MATCH(SUMPRODUCT((tblListedesclasses[JOUR]=tblHoraires[[#Headers],[SAMEDI]])*($B10>=tblListedesclasses[HEURE DE DÉBUT])*($B10<=tblListedesclasses[HEURE DE FIN]),tblListedesclasses[UNIQUE]),tblListedesclasses[UNIQUE],0),2),0)","v":0}]
[null,"09:30:00",{"$f":"IFERROR(INDEX(tblListedesclasses[],MATCH(SUMPRODUCT((tblListedesclasses[JOUR]=tblHoraires[[#Headers],[DIMANCHE]])*($B11>=tblListedesclasses[HEURE DE DÉBUT])*($B11<=tblListedesclasses[HEURE DE FIN]),tblListedesclasses[UNIQUE]),tblListedesclasses[UNIQUE],0),2),0)","v":0},{"$f":"IFERROR(INDEX(tblListedesclasses[],MATCH(SUMPRODUCT((tblListedesclasses[JOUR]=tblHoraires[[#Headers],[LUNDI]])*($B11>=tblListedesclasses[HEURE DE DÉBUT])*($B11<=tblListedesclasses[HEURE DE FIN]),tblListedesclasses[UNIQUE]),tblListedesclasses[UNIQUE],0),2),0)","v":"Alice"},{"$f":"IFERROR(INDEX(tblListedesclasses[],MATCH(SUMPRODUCT((tblListedesclasses[JOUR]=tblHoraires[[#Headers],[MARDI]])*($B11>=tblListedesclasses[HEURE DE DÉBUT])*($B11<=tblListedesclasses[HEURE DE FIN]),tblListedesclasses[UNIQUE]),tblListedesclasses[UNIQUE],0),2),0)","v":0},{"$f":"IFERROR(INDEX(tblListedesclasses[],MATCH(SUMPRODUCT((tblListedesclasses[JOUR]=tblHoraires[[#Headers],[MERCREDI]])*($B11>=tblListedesclasses[HEURE DE DÉBUT])*($B11<=tblListedesclasses[HEURE DE FIN]),tblListedesclasses[UNIQUE]),tblListedesclasses[UNIQUE],0),2),0)","v":0},{"$f":"IFERROR(INDEX(tblListedesclasses[],MATCH(SUMPRODUCT((tblListedesclasses[JOUR]=tblHoraires[[#Headers],[JEUDI]])*($B11>=tblListedesclasses[HEURE DE DÉBUT])*($B11<=tblListedesclasses[HEURE DE FIN]),tblListedesclasses[UNIQUE]),tblListedesclasses[UNIQUE],0),2),0)","v":0},{"$f":"IFERROR(INDEX(tblListedesclasses[],MATCH(SUMPRODUCT((tblListedesclasses[JOUR]=tblHoraires[[#Headers],[VENDREDI]])*($B11>=tblListedesclasses[HEURE DE DÉBUT])*($B11<=tblListedesclasses[HEURE DE FIN]),tblListedesclasses[UNIQUE]),tblListedesclasses[UNIQUE],0),2),0)","v":"Spitex"},{"$f":"IFERROR(INDEX(tblListedesclasses[],MATCH(SUMPRODUCT((tblListedesclasses[JOUR]=tblHoraires[[#Headers],[SAMEDI]])*($B11>=tblListedesclasses[HEURE DE DÉBUT])*($B11<=tblListedesclasses[HEURE DE FIN]),tblListedesclasses[UNIQUE]),tblListedesclasses[UNIQUE],0),2),0)","v":0}]
[null,"09:45:00",{"$f":"IFERROR(INDEX(tblListedesclasses[],MATCH(SUMPRODUCT((tblListedesclasses[JOUR]=tblHoraires[[#Headers],[DIMANCHE]])*($B12>=tblListedesclasses[HEURE DE DÉBUT])*($B12<=tblListedesclasses[HEURE DE FIN]),tblListedesclasses[UNIQUE]),tblListedesclasses[UNIQUE],0),2),0)","v":0},{"$f":"IFERROR(INDEX(tblListedesclasses[],MATCH(SUMPRODUCT((tblListedesclasses[JOUR]=tblHoraires[[#Headers],[LUNDI]])*($B12>=tblListedesclasses[HEURE DE DÉBUT])*($B12<=tblListedesclasses[HEURE DE FIN]),tblListedesclasses[UNIQUE]),tblListedesclasses[UNIQUE],0),2),0)","v":"Alice"},{"$f":"IFERROR(INDEX(tblListedesclasses[],MATCH(SUMPRODUCT((tblListedesclasses[JOUR]=tblHoraires[[#Headers],[MARDI]])*($B12>=tblListedesclasses[HEURE DE DÉBUT])*($B12<=tblListedesclasses[HEURE DE FIN]),tblListedesclasses[UNIQUE]),tblListedesclasses[UNIQUE],0),2),0)","v":0},{"$f":"IFERROR(INDEX(tblListedesclasses[],MATCH(SUMPRODUCT((tblListedesclasses[JOUR]=tblHoraires[[#Headers],[MERCREDI]])*($B12>=tblListedesclasses[HEURE DE DÉBUT])*($B12<=tblListedesclasses[HEURE DE FIN]),tblListedesclasses[UNIQUE]),tblListedesclasses[UNIQUE],0),2),0)","v":0},{"$f":"IFERROR(INDEX(tblListedesclasses[],MATCH(SUMPRODUCT((tblListedesclasses[JOUR]=tblHoraires[[#Headers],[JEUDI]])*($B12>=tblListedesclasses[HEURE DE DÉBUT])*($B12<=tblListedesclasses[HEURE DE FIN]),tblListedesclasses[UNIQUE]),tblListedesclasses[UNIQUE],0),2),0)","v":0},{"$f":"IFERROR(INDEX(tblListedesclasses[],MATCH(SUMPRODUCT((tblListedesclasses[JOUR]=tblHoraires[[#Headers],[VENDREDI]])*($B12>=tblListedesclasses[HEURE DE DÉBUT])*($B12<=tblListedesclasses[HEURE DE FIN]),tblListedesclasses[UNIQUE]),tblListedesclasses[UNIQUE],0),2),0)","v":0},{"$f":"IFERROR(INDEX(tblListedesclasses[],MATCH(SUMPRODUCT((tblListedesclasses[JOUR]=tblHoraires[[#Headers],[SAMEDI]])*($B12>=tblListedesclasses[HEURE DE DÉBUT])*($B12<=tblListedesclasses[HEURE DE FIN]),tblListedesclasses[UNIQUE]),tblListedesclasses[UNIQUE],0),2),0)","v":0}]
[null,"10:00:00",{"$f":"IFERROR(INDEX(tblListedesclasses[],MATCH(SUMPRODUCT((tblListedesclasses[JOUR]=tblHoraires[[#Headers],[DIMANCHE]])*($B13>=tblListedesclasses[HEURE DE DÉBUT])*($B13<=tblListedesclasses[HEURE DE FIN]),tblListedesclasses[UNIQUE]),tblListedesclasses[UNIQUE],0),2),0)","v":0},{"$f":"IFERROR(INDEX(tblListedesclasses[],MATCH(SUMPRODUCT((tblListedesclasses[JOUR]=tblHoraires[[#Headers],[LUNDI]])*($B13>=tblListedesclasses[HEURE DE DÉBUT])*($B13<=tblListedesclasses[HEURE DE FIN]),tblListedesclasses[UNIQUE]),tblListedesclasses[UNIQUE],0),2),0)","v":"Alice"},{"$f":"IFERROR(INDEX(tblListedesclasses[],MATCH(SUMPRODUCT((tblListedesclasses[JOUR]=tblHoraires[[#Headers],[MARDI]])*($B13>=tblListedesclasses[HEURE DE DÉBUT])*($B13<=tblListedesclasses[HEURE DE FIN]),tblListedesclasses[UNIQUE]),tblListedesclasses[UNIQUE],0),2),0)","v":0},{"$f":"IFERROR(INDEX(tblListedesclasses[],MATCH(SUMPRODUCT((tblListedesclasses[JOUR]=tblHoraires[[#Headers],[MERCREDI]])*($B13>=tblListedesclasses[HEURE DE DÉBUT])*($B13<=tblListedesclasses[HEURE DE FIN]),tblListedesclasses[UNIQUE]),tblListedesclasses[UNIQUE],0),2),0)","v":0},{"$f":"IFERROR(INDEX(tblListedesclasses[],MATCH(SUMPRODUCT((tblListedesclasses[JOUR]=tblHoraires[[#Headers],[JEUDI]])*($B13>=tblListedesclasses[HEURE DE DÉBUT])*($B13<=tblListedesclasses[HEURE DE FIN]),tblListedesclasses[UNIQUE]),tblListedesclasses[UNIQUE],0),2),0)","v":0},{"$f":"IFERROR(INDEX(tblListedesclasses[],MATCH(SUMPRODUCT((tblListedesclasses[JOUR]=tblHoraires[[#Headers],[VENDREDI]])*($B13>=tblListedesclasses[HEURE DE DÉBUT])*($B13<=tblListedesclasses[HEURE DE FIN]),tblListedesclasses[UNIQUE]),tblListedesclasses[UNIQUE],0),2),0)","v":0},{"$f":"IFERROR(INDEX(tblListedesclasses[],MATCH(SUMPRODUCT((tblListedesclasses[JOUR]=tblHoraires[[#Headers],[SAMEDI]])*($B13>=tblListedesclasses[HEURE DE DÉBUT])*($B13<=tblListedesclasses[HEURE DE FIN]),tblListedesclasses[UNIQUE]),tblListedesclasses[UNIQUE],0),2),0)","v":0}]
[null,"10:15:00",{"$f":"IFERROR(INDEX(tblListedesclasses[],MATCH(SUMPRODUCT((tblListedesclasses[JOUR]=tblHoraires[[#Headers],[DIMANCHE]])*($B14>=tblListedesclasses[HEURE DE DÉBUT])*($B14<=tblListedesclasses[HEURE DE FIN]),tblListedesclasses[UNIQUE]),tblListedesclasses[UNIQUE],0),2),0)","v":0},{"$f":"IFERROR(INDEX(tblListedesclasses[],MATCH(SUMPRODUCT((tblListedesclasses[JOUR]=tblHoraires[[#Headers],[LUNDI]])*($B14>=tblListedesclasses[HEURE DE DÉBUT])*($B14<=tblListedesclasses[HEURE DE FIN]),tblListedesclasses[UNIQUE]),tblListedesclasses[UNIQUE],0),2),0)","v":0},{"$f":"IFERROR(INDEX(tblListedesclasses[],MATCH(SUMPRODUCT((tblListedesclasses[JOUR]=tblHoraires[[#Headers],[MARDI]])*($B14>=tblListedesclasses[HEURE DE DÉBUT])*($B14<=tblListedesclasses[HEURE DE FIN]),tblListedesclasses[UNIQUE]),tblListedesclasses[UNIQUE],0),2),0)","v":0},{"$f":"IFERROR(INDEX(tblListedesclasses[],MATCH(SUMPRODUCT((tblListedesclasses[JOUR]=tblHoraires[[#Headers],[MERCREDI]])*($B14>=tblListedesclasses[HEURE DE DÉBUT])*($B14<=tblListedesclasses[HEURE DE FIN]),tblListedesclasses[UNIQUE]),tblListedesclasses[UNIQUE],0),2),0)","v":0},{"$f":"IFERROR(INDEX(tblListedesclasses[],MATCH(SUMPRODUCT((tblListedesclasses[JOUR]=tblHoraires[[#Headers],[JEUDI]])*($B14>=tblListedesclasses[HEURE DE DÉBUT])*($B14<=tblListedesclasses[HEURE DE FIN]),tblListedesclasses[UNIQUE]),tblListedesclasses[UNIQUE],0),2),0)","v":0},{"$f":"IFERROR(INDEX(tblListedesclasses[],MATCH(SUMPRODUCT((tblListedesclasses[JOUR]=tblHoraires[[#Headers],[VENDREDI]])*($B14>=tblListedesclasses[HEURE DE DÉBUT])*($B14<=tblListedesclasses[HEURE DE FIN]),tblListedesclasses[UNIQUE]),tblListedesclasses[UNIQUE],0),2),0)","v":0},{"$f":"IFERROR(INDEX(tblListedesclasses[],MATCH(SUMPRODUCT((tblListedesclasses[JOUR]=tblHoraires[[#Headers],[SAMEDI]])*($B14>=tblListedesclasses[HEURE DE DÉBUT])*($B14<=tblListedesclasses[HEURE DE FIN]),tblListedesclasses[UNIQUE]),tblListedesclasses[UNIQUE],0),2),0)","v":0}]
[null,"10:30:00",{"$f":"IFERROR(INDEX(tblListedesclasses[],MATCH(SUMPRODUCT((tblListedesclasses[JOUR]=tblHoraires[[#Headers],[DIMANCHE]])*($B15>=tblListedesclasses[HEURE DE DÉBUT])*($B15<=tblListedesclasses[HEURE DE FIN]),tblListedesclasses[UNIQUE]),tblListedesclasses[UNIQUE],0),2),0)","v":0},{"$f":"IFERROR(INDEX(tblListedesclasses[],MATCH(SUMPRODUCT((tblListedesclasses[JOUR]=tblHoraires[[#Headers],[LUNDI]])*($B15>=tblListedesclasses[HEURE DE DÉBUT])*($B15<=tblListedesclasses[HEURE DE FIN]),tblListedesclasses[UNIQUE]),tblListedesclasses[UNIQUE],0),2),0)","v":0},{"$f":"IFERROR(INDEX(tblListedesclasses[],MATCH(SUMPRODUCT((tblListedesclasses[JOUR]=tblHoraires[[#Headers],[MARDI]])*($B15>=tblListedesclasses[HEURE DE DÉBUT])*($B15<=tblListedesclasses[HEURE DE FIN]),tblListedesclasses[UNIQUE]),tblListedesclasses[UNIQUE],0),2),0)","v":0},{"$f":"IFERROR(INDEX(tblListedesclasses[],MATCH(SUMPRODUCT((tblListedesclasses[JOUR]=tblHoraires[[#Headers],[MERCREDI]])*($B15>=tblListedesclasses[HEURE DE DÉBUT])*($B15<=tblListedesclasses[HEURE DE FIN]),tblListedesclasses[UNIQUE]),tblListedesclasses[UNIQUE],0),2),0)","v":0},{"$f":"IFERROR(INDEX(tblListedesclasses[],MATCH(SUMPRODUCT((tblListedesclasses[JOUR]=tblHoraires[[#Headers],[JEUDI]])*($B15>=tblListedesclasses[HEURE DE DÉBUT])*($B15<=tblListedesclasses[HEURE DE FIN]),tblListedesclasses[UNIQUE]),tblListedesclasses[UNIQUE],0),2),0)","v":0},{"$f":"IFERROR(INDEX(tblListedesclasses[],MATCH(SUMPRODUCT((tblListedesclasses[JOUR]=tblHoraires[[#Headers],[VENDREDI]])*($B15>=tblListedesclasses[HEURE DE DÉBUT])*($B15<=tblListedesclasses[HEURE DE FIN]),tblListedesclasses[UNIQUE]),tblListedesclasses[UNIQUE],0),2),0)","v":0},{"$f":"IFERROR(INDEX(tblListedesclasses[],MATCH(SUMPRODUCT((tblListedesclasses[JOUR]=tblHoraires[[#Headers],[SAMEDI]])*($B15>=tblListedesclasses[HEURE DE DÉBUT])*($B15<=tblListedesclasses[HEURE DE FIN]),tblListedesclasses[UNIQUE]),tblListedesclasses[UNIQUE],0),2),0)","v":0}]
[null,"10:45:00",{"$f":"IFERROR(INDEX(tblListedesclasses[],MATCH(SUMPRODUCT((tblListedesclasses[JOUR]=tblHoraires[[#Headers],[DIMANCHE]])*($B16>=tblListedesclasses[HEURE DE DÉBUT])*($B16<=tblListedesclasses[HEURE DE FIN]),tblListedesclasses[UNIQUE]),tblListedesclasses[UNIQUE],0),2),0)","v":0},{"$f":"IFERROR(INDEX(tblListedesclasses[],MATCH(SUMPRODUCT((tblListedesclasses[JOUR]=tblHoraires[[#Headers],[LUNDI]])*($B16>=tblListedesclasses[HEURE DE DÉBUT])*($B16<=tblListedesclasses[HEURE DE FIN]),tblListedesclasses[UNIQUE]),tblListedesclasses[UNIQUE],0),2),0)","v":0},{"$f":"IFERROR(INDEX(tblListedesclasses[],MATCH(SUMPRODUCT((tblListedesclasses[JOUR]=tblHoraires[[#Headers],[MARDI]])*($B16>=tblListedesclasses[HEURE DE DÉBUT])*($B16<=tblListedesclasses[HEURE DE FIN]),tblListedesclasses[UNIQUE]),tblListedesclasses[UNIQUE],0),2),0)","v":0},{"$f":"IFERROR(INDEX(tblListedesclasses[],MATCH(SUMPRODUCT((tblListedesclasses[JOUR]=tblHoraires[[#Headers],[MERCREDI]])*($B16>=tblListedesclasses[HEURE DE DÉBUT])*($B16<=tblListedesclasses[HEURE DE FIN]),tblListedesclasses[UNIQUE]),tblListedesclasses[UNIQUE],0),2),0)","v":0},{"$f":"IFERROR(INDEX(tblListedesclasses[],MATCH(SUMPRODUCT((tblListedesclasses[JOUR]=tblHoraires[[#Headers],[JEUDI]])*($B16>=tblListedesclasses[HEURE DE DÉBUT])*($B16<=tblListedesclasses[HEURE DE FIN]),tblListedesclasses[UNIQUE]),tblListedesclasses[UNIQUE],0),2),0)","v":0},{"$f":"IFERROR(INDEX(tblListedesclasses[],MATCH(SUMPRODUCT((tblListedesclasses[JOUR]=tblHoraires[[#Headers],[VENDREDI]])*($B16>=tblListedesclasses[HEURE DE DÉBUT])*($B16<=tblListedesclasses[HEURE DE FIN]),tblListedesclasses[UNIQUE]),tblListedesclasses[UNIQUE],0),2),0)","v":0},{"$f":"IFERROR(INDEX(tblListedesclasses[],MATCH(SUMPRODUCT((tblListedesclasses[JOUR]=tblHoraires[[#Headers],[SAMEDI]])*($B16>=tblListedesclasses[HEURE DE DÉBUT])*($B16<=tblListedesclasses[HEURE DE FIN]),tblListedesclasses[UNIQUE]),tblListedesclasses[UNIQUE],0),2),0)","v":0}]
[null,"11:00:00",{"$f":"IFERROR(INDEX(tblListedesclasses[],MATCH(SUMPRODUCT((tblListedesclasses[JOUR]=tblHoraires[[#Headers],[DIMANCHE]])*($B17>=tblListedesclasses[HEURE DE DÉBUT])*($B17<=tblListedesclasses[HEURE DE FIN]),tblListedesclasses[UNIQUE]),tblListedesclasses[UNIQUE],0),2),0)","v":0},{"$f":"IFERROR(INDEX(tblListedesclasses[],MATCH(SUMPRODUCT((tblListedesclasses[JOUR]=tblHoraires[[#Headers],[LUNDI]])*($B17>=tblListedesclasses[HEURE DE DÉBUT])*($B17<=tblListedesclasses[HEURE DE FIN]),tblListedesclasses[UNIQUE]),tblListedesclasses[UNIQUE],0),2),0)","v":0},{"$f":"IFERROR(INDEX(tblListedesclasses[],MATCH(SUMPRODUCT((tblListedesclasses[JOUR]=tblHoraires[[#Headers],[MARDI]])*($B17>=tblListedesclasses[HEURE DE DÉBUT])*($B17<=tblListedesclasses[HEURE DE FIN]),tblListedesclasses[UNIQUE]),tblListedesclasses[UNIQUE],0),2),0)","v":"Spitex"},{"$f":"IFERROR(INDEX(tblListedesclasses[],MATCH(SUMPRODUCT((tblListedesclasses[JOUR]=tblHoraires[[#Headers],[MERCREDI]])*($B17>=tblListedesclasses[HEURE DE DÉBUT])*($B17<=tblListedesclasses[HEURE DE FIN]),tblListedesclasses[UNIQUE]),tblListedesclasses[UNIQUE],0),2),0)","v":0},{"$f":"IFERROR(INDEX(tblListedesclasses[],MATCH(SUMPRODUCT((tblListedesclasses[JOUR]=tblHoraires[[#Headers],[JEUDI]])*($B17>=tblListedesclasses[HEURE DE DÉBUT])*($B17<=tblListedesclasses[HEURE DE FIN]),tblListedesclasses[UNIQUE]),tblListedesclasses[UNIQUE],0),2),0)","v":0},{"$f":"IFERROR(INDEX(tblListedesclasses[],MATCH(SUMPRODUCT((tblListedesclasses[JOUR]=tblHoraires[[#Headers],[VENDREDI]])*($B17>=tblListedesclasses[HEURE DE DÉBUT])*($B17<=tblListedesclasses[HEURE DE FIN]),tblListedesclasses[UNIQUE]),tblListedesclasses[UNIQUE],0),2),0)","v":0},{"$f":"IFERROR(INDEX(tblListedesclasses[],MATCH(SUMPRODUCT((tblListedesclasses[JOUR]=tblHoraires[[#Headers],[SAMEDI]])*($B17>=tblListedesclasses[HEURE DE DÉBUT])*($B17<=tblListedesclasses[HEURE DE FIN]),tblListedesclasses[UNIQUE]),tblListedesclasses[UNIQUE],0),2),0)","v":0}]
[null,"11:15:00",{"$f":"IFERROR(INDEX(tblListedesclasses[],MATCH(SUMPRODUCT((tblListedesclasses[JOUR]=tblHoraires[[#Headers],[DIMANCHE]])*($B18>=tblListedesclasses[HEURE DE DÉBUT])*($B18<=tblListedesclasses[HEURE DE FIN]),tblListedesclasses[UNIQUE]),tblListedesclasses[UNIQUE],0),2),0)","v":0},{"$f":"IFERROR(INDEX(tblListedesclasses[],MATCH(SUMPRODUCT((tblListedesclasses[JOUR]=tblHoraires[[#Headers],[LUNDI]])*($B18>=tblListedesclasses[HEURE DE DÉBUT])*($B18<=tblListedesclasses[HEURE DE FIN]),tblListedesclasses[UNIQUE]),tblListedesclasses[UNIQUE],0),2),0)","v":0},{"$f":"IFERROR(INDEX(tblListedesclasses[],MATCH(SUMPRODUCT((tblListedesclasses[JOUR]=tblHoraires[[#Headers],[MARDI]])*($B18>=tblListedesclasses[HEURE DE DÉBUT])*($B18<=tblListedesclasses[HEURE DE FIN]),tblListedesclasses[UNIQUE]),tblListedesclasses[UNIQUE],0),2),0)","v":"Spitex"},{"$f":"IFERROR(INDEX(tblListedesclasses[],MATCH(SUMPRODUCT((tblListedesclasses[JOUR]=tblHoraires[[#Headers],[MERCREDI]])*($B18>=tblListedesclasses[HEURE DE DÉBUT])*($B18<=tblListedesclasses[HEURE DE FIN]),tblListedesclasses[UNIQUE]),tblListedesclasses[UNIQUE],0),2),0)","v":0},{"$f":"IFERROR(INDEX(tblListedesclasses[],MATCH(SUMPRODUCT((tblListedesclasses[JOUR]=tblHoraires[[#Headers],[JEUDI]])*($B18>=tblListedesclasses[HEURE DE DÉBUT])*($B18<=tblListedesclasses[HEURE DE FIN]),tblListedesclasses[UNIQUE]),tblListedesclasses[UNIQUE],0),2),0)","v":0},{"$f":"IFERROR(INDEX(tblListedesclasses[],MATCH(SUMPRODUCT((tblListedesclasses[JOUR]=tblHoraires[[#Headers],[VENDREDI]])*($B18>=tblListedesclasses[HEURE DE DÉBUT])*($B18<=tblListedesclasses[HEURE DE FIN]),tblListedesclasses[UNIQUE]),tblListedesclasses[UNIQUE],0),2),0)","v":0},{"$f":"IFERROR(INDEX(tblListedesclasses[],MATCH(SUMPRODUCT((tblListedesclasses[JOUR]=tblHoraires[[#Headers],[SAMEDI]])*($B18>=tblListedesclasses[HEURE DE DÉBUT])*($B18<=tblListedesclasses[HEURE DE FIN]),tblListedesclasses[UNIQUE]),tblListedesclasses[UNIQUE],0),2),0)","v":0}]
[null,"11:30:00",{"$f":"IFERROR(INDEX(tblListedesclasses[],MATCH(SUMPRODUCT((tblListedesclasses[JOUR]=tblHoraires[[#Headers],[DIMANCHE]])*($B19>=tblListedesclasses[HEURE DE DÉBUT])*($B19<=tblListedesclasses[HEURE DE FIN]),tblListedesclasses[UNIQUE]),tblListedesclasses[UNIQUE],0),2),0)","v":0},{"$f":"IFERROR(INDEX(tblListedesclasses[],MATCH(SUMPRODUCT((tblListedesclasses[JOUR]=tblHoraires[[#Headers],[LUNDI]])*($B19>=tblListedesclasses[HEURE DE DÉBUT])*($B19<=tblListedesclasses[HEURE DE FIN]),tblListedesclasses[UNIQUE]),tblListedesclasses[UNIQUE],0),2),0)","v":0},{"$f":"IFERROR(INDEX(tblListedesclasses[],MATCH(SUMPRODUCT((tblListedesclasses[JOUR]=tblHoraires[[#Headers],[MARDI]])*($B19>=tblListedesclasses[HEURE DE DÉBUT])*($B19<=tblListedesclasses[HEURE DE FIN]),tblListedesclasses[UNIQUE]),tblListedesclasses[UNIQUE],0),2),0)","v":"Spitex"},{"$f":"IFERROR(INDEX(tblListedesclasses[],MATCH(SUMPRODUCT((tblListedesclasses[JOUR]=tblHoraires[[#Headers],[MERCREDI]])*($B19>=tblListedesclasses[HEURE DE DÉBUT])*($B19<=tblListedesclasses[HEURE DE FIN]),tblListedesclasses[UNIQUE]),tblListedesclasses[UNIQUE],0),2),0)","v":0},{"$f":"IFERROR(INDEX(tblListedesclasses[],MATCH(SUMPRODUCT((tblListedesclasses[JOUR]=tblHoraires[[#Headers],[JEUDI]])*($B19>=tblListedesclasses[HEURE DE DÉBUT])*($B19<=tblListedesclasses[HEURE DE FIN]),tblListedesclasses[UNIQUE]),tblListedesclasses[UNIQUE],0),2),0)","v":0},{"$f":"IFERROR(INDEX(tblListedesclasses[],MATCH(SUMPRODUCT((tblListedesclasses[JOUR]=tblHoraires[[#Headers],[VENDREDI]])*($B19>=tblListedesclasses[HEURE DE DÉBUT])*($B19<=tblListedesclasses[HEURE DE FIN]),tblListedesclasses[UNIQUE]),tblListedesclasses[UNIQUE],0),2),0)","v":0},{"$f":"IFERROR(INDEX(tblListedesclasses[],MATCH(SUMPRODUCT((tblListedesclasses[JOUR]=tblHoraires[[#Headers],[SAMEDI]])*($B19>=tblListedesclasses[HEURE DE DÉBUT])*($B19<=tblListedesclasses[HEURE DE FIN]),tblListedesclasses[UNIQUE]),tblListedesclasses[UNIQUE],0),2),0)","v":0}]
[null,"11:45:00",{"$f":"IFERROR(INDEX(tblListedesclasses[],MATCH(SUMPRODUCT((tblListedesclasses[JOUR]=tblHoraires[[#Headers],[DIMANCHE]])*($B20>=tblListedesclasses[HEURE DE DÉBUT])*($B20<=tblListedesclasses[HEURE DE FIN]),tblListedesclasses[UNIQUE]),tblListedesclasses[UNIQUE],0),2),0)","v":0},{"$f":"IFERROR(INDEX(tblListedesclasses[],MATCH(SUMPRODUCT((tblListedesclasses[JOUR]=tblHoraires[[#Headers],[LUNDI]])*($B20>=tblListedesclasses[HEURE DE DÉBUT])*($B20<=tblListedesclasses[HEURE DE FIN]),tblListedesclasses[UNIQUE]),tblListedesclasses[UNIQUE],0),2),0)","v":0},{"$f":"IFERROR(INDEX(tblListedesclasses[],MATCH(SUMPRODUCT((tblListedesclasses[JOUR]=tblHoraires[[#Headers],[MARDI]])*($B20>=tblListedesclasses[HEURE DE DÉBUT])*($B20<=tblListedesclasses[HEURE DE FIN]),tblListedesclasses[UNIQUE]),tblListedesclasses[UNIQUE],0),2),0)","v":"Spitex"},{"$f":"IFERROR(INDEX(tblListedesclasses[],MATCH(SUMPRODUCT((tblListedesclasses[JOUR]=tblHoraires[[#Headers],[MERCREDI]])*($B20>=tblListedesclasses[HEURE DE DÉBUT])*($B20<=tblListedesclasses[HEURE DE FIN]),tblListedesclasses[UNIQUE]),tblListedesclasses[UNIQUE],0),2),0)","v":0},{"$f":"IFERROR(INDEX(tblListedesclasses[],MATCH(SUMPRODUCT((tblListedesclasses[JOUR]=tblHoraires[[#Headers],[JEUDI]])*($B20>=tblListedesclasses[HEURE DE DÉBUT])*($B20<=tblListedesclasses[HEURE DE FIN]),tblListedesclasses[UNIQUE]),tblListedesclasses[UNIQUE],0),2),0)","v":0},{"$f":"IFERROR(INDEX(tblListedesclasses[],MATCH(SUMPRODUCT((tblListedesclasses[JOUR]=tblHoraires[[#Headers],[VENDREDI]])*($B20>=tblListedesclasses[HEURE DE DÉBUT])*($B20<=tblListedesclasses[HEURE DE FIN]),tblListedesclasses[UNIQUE]),tblListedesclasses[UNIQUE],0),2),0)","v":0},{"$f":"IFERROR(INDEX(tblListedesclasses[],MATCH(SUMPRODUCT((tblListedesclasses[JOUR]=tblHoraires[[#Headers],[SAMEDI]])*($B20>=tblListedesclasses[HEURE DE DÉBUT])*($B20<=tblListedesclasses[HEURE DE FIN]),tblListedesclasses[UNIQUE]),tblListedesclasses[UNIQUE],0),2),0)","v":0}]
[null,"12:00:00",{"$f":"IFERROR(INDEX(tblListedesclasses[],MATCH(SUMPRODUCT((tblListedesclasses[JOUR]=tblHoraires[[#Headers],[DIMANCHE]])*($B21>=tblListedesclasses[HEURE DE DÉBUT])*($B21<=tblListedesclasses[HEURE DE FIN]),tblListedesclasses[UNIQUE]),tblListedesclasses[UNIQUE],0),2),0)","v":0},{"$f":"IFERROR(INDEX(tblListedesclasses[],MATCH(SUMPRODUCT((tblListedesclasses[JOUR]=tblHoraires[[#Headers],[LUNDI]])*($B21>=tblListedesclasses[HEURE DE DÉBUT])*($B21<=tblListedesclasses[HEURE DE FIN]),tblListedesclasses[UNIQUE]),tblListedesclasses[UNIQUE],0),2),0)","v":0},{"$f":"IFERROR(INDEX(tblListedesclasses[],MATCH(SUMPRODUCT((tblListedesclasses[JOUR]=tblHoraires[[#Headers],[MARDI]])*($B21>=tblListedesclasses[HEURE DE DÉBUT])*($B21<=tblListedesclasses[HEURE DE FIN]),tblListedesclasses[UNIQUE]),tblListedesclasses[UNIQUE],0),2),0)","v":"Spitex"},{"$f":"IFERROR(INDEX(tblListedesclasses[],MATCH(SUMPRODUCT((tblListedesclasses[JOUR]=tblHoraires[[#Headers],[MERCREDI]])*($B21>=tblListedesclasses[HEURE DE DÉBUT])*($B21<=tblListedesclasses[HEURE DE FIN]),tblListedesclasses[UNIQUE]),tblListedesclasses[UNIQUE],0),2),0)","v":"Eglise"},{"$f":"IFERROR(INDEX(tblListedesclasses[],MATCH(SUMPRODUCT((tblListedesclasses[JOUR]=tblHoraires[[#Headers],[JEUDI]])*($B21>=tblListedesclasses[HEURE DE DÉBUT])*($B21<=tblListedesclasses[HEURE DE FIN]),tblListedesclasses[UNIQUE]),tblListedesclasses[UNIQUE],0),2),0)","v":0},{"$f":"IFERROR(INDEX(tblListedesclasses[],MATCH(SUMPRODUCT((tblListedesclasses[JOUR]=tblHoraires[[#Headers],[VENDREDI]])*($B21>=tblListedesclasses[HEURE DE DÉBUT])*($B21<=tblListedesclasses[HEURE DE FIN]),tblListedesclasses[UNIQUE]),tblListedesclasses[UNIQUE],0),2),0)","v":0},{"$f":"IFERROR(INDEX(tblListedesclasses[],MATCH(SUMPRODUCT((tblListedesclasses[JOUR]=tblHoraires[[#Headers],[SAMEDI]])*($B21>=tblListedesclasses[HEURE DE DÉBUT])*($B21<=tblListedesclasses[HEURE DE FIN]),tblListedesclasses[UNIQUE]),tblListedesclasses[UNIQUE],0),2),0)","v":0}]
[null,"12:15:00",{"$f":"IFERROR(INDEX(tblListedesclasses[],MATCH(SUMPRODUCT((tblListedesclasses[JOUR]=tblHoraires[[#Headers],[DIMANCHE]])*($B22>=tblListedesclasses[HEURE DE DÉBUT])*($B22<=tblListedesclasses[HEURE DE FIN]),tblListedesclasses[UNIQUE]),tblListedesclasses[UNIQUE],0),2),0)","v":0},{"$f":"IFERROR(INDEX(tblListedesclasses[],MATCH(SUMPRODUCT((tblListedesclasses[JOUR]=tblHoraires[[#Headers],[LUNDI]])*($B22>=tblListedesclasses[HEURE DE DÉBUT])*($B22<=tblListedesclasses[HEURE DE FIN]),tblListedesclasses[UNIQUE]),tblListedesclasses[UNIQUE],0),2),0)","v":0},{"$f":"IFERROR(INDEX(tblListedesclasses[],MATCH(SUMPRODUCT((tblListedesclasses[JOUR]=tblHoraires[[#Headers],[MARDI]])*($B22>=tblListedesclasses[HEURE DE DÉBUT])*($B22<=tblListedesclasses[HEURE DE FIN]),tblListedesclasses[UNIQUE]),tblListedesclasses[UNIQUE],0),2),0)","v":0},{"$f":"IFERROR(INDEX(tblListedesclasses[],MATCH(SUMPRODUCT((tblListedesclasses[JOUR]=tblHoraires[[#Headers],[MERCREDI]])*($B22>=tblListedesclasses[HEURE DE DÉBUT])*($B22<=tblListedesclasses[HEURE DE FIN]),tblListedesclasses[UNIQUE]),tblListedesclasses[UNIQUE],0),2),0)","v":"Eglise"},{"$f":"IFERROR(INDEX(tblListedesclasses[],MATCH(SUMPRODUCT((tblListedesclasses[JOUR]=tblHoraires[[#Headers],[JEUDI]])*($B22>=tblListedesclasses[HEURE DE DÉBUT])*($B22<=tblListedesclasses[HEURE DE FIN]),tblListedesclasses[UNIQUE]),tblListedesclasses[UNIQUE],0),2),0)","v":0},{"$f":"IFERROR(INDEX(tblListedesclasses[],MATCH(SUMPRODUCT((tblListedesclasses[JOUR]=tblHoraires[[#Headers],[VENDREDI]])*($B22>=tblListedesclasses[HEURE DE DÉBUT])*($B22<=tblListedesclasses[HEURE DE FIN]),tblListedesclasses[UNIQUE]),tblListedesclasses[UNIQUE],0),2),0)","v":0},{"$f":"IFERROR(INDEX(tblListedesclasses[],MATCH(SUMPRODUCT((tblListedesclasses[JOUR]=tblHoraires[[#Headers],[SAMEDI]])*($B22>=tblListedesclasses[HEURE DE DÉBUT])*($B22<=tblListedesclasses[HEURE DE FIN]),tblListedesclasses[UNIQUE]),tblListedesclasses[UNIQUE],0),2),0)","v":0}]
[null,"12:30:00",{"$f":"IFERROR(INDEX(tblListedesclasses[],MATCH(SUMPRODUCT((tblListedesclasses[JOUR]=tblHoraires[[#Headers],[DIMANCHE]])*($B23>=tblListedesclasses[HEURE DE DÉBUT])*($B23<=tblListedesclasses[HEURE DE FIN]),tblListedesclasses[UNIQUE]),tblListedesclasses[UNIQUE],0),2),0)","v":0},{"$f":"IFERROR(INDEX(tblListedesclasses[],MATCH(SUMPRODUCT((tblListedesclasses[JOUR]=tblHoraires[[#Headers],[LUNDI]])*($B23>=tblListedesclasses[HEURE DE DÉBUT])*($B23<=tblListedesclasses[HEURE DE FIN]),tblListedesclasses[UNIQUE]),tblListedesclasses[UNIQUE],0),2),0)","v":"Ass. Repas"},{"$f":"IFERROR(INDEX(tblListedesclasses[],MATCH(SUMPRODUCT((tblListedesclasses[JOUR]=tblHoraires[[#Headers],[MARDI]])*($B23>=tblListedesclasses[HEURE DE DÉBUT])*($B23<=tblListedesclasses[HEURE DE FIN]),tblListedesclasses[UNIQUE]),tblListedesclasses[UNIQUE],0),2),0)","v":0},{"$f":"IFERROR(INDEX(tblListedesclasses[],MATCH(SUMPRODUCT((tblListedesclasses[JOUR]=tblHoraires[[#Headers],[MERCREDI]])*($B23>=tblListedesclasses[HEURE DE DÉBUT])*($B23<=tblListedesclasses[HEURE DE FIN]),tblListedesclasses[UNIQUE]),tblListedesclasses[UNIQUE],0),2),0)","v":"Eglise"},{"$f":"IFERROR(INDEX(tblListedesclasses[],MATCH(SUMPRODUCT((tblListedesclasses[JOUR]=tblHoraires[[#Headers],[JEUDI]])*($B23>=tblListedesclasses[HEURE DE DÉBUT])*($B23<=tblListedesclasses[HEURE DE FIN]),tblListedesclasses[UNIQUE]),tblListedesclasses[UNIQUE],0),2),0)","v":"Ass. Repas"},{"$f":"IFERROR(INDEX(tblListedesclasses[],MATCH(SUMPRODUCT((tblListedesclasses[JOUR]=tblHoraires[[#Headers],[VENDREDI]])*($B23>=tblListedesclasses[HEURE DE DÉBUT])*($B23<=tblListedesclasses[HEURE DE FIN]),tblListedesclasses[UNIQUE]),tblListedesclasses[UNIQUE],0),2),0)","v":0},{"$f":"IFERROR(INDEX(tblListedesclasses[],MATCH(SUMPRODUCT((tblListedesclasses[JOUR]=tblHoraires[[#Headers],[SAMEDI]])*($B23>=tblListedesclasses[HEURE DE DÉBUT])*($B23<=tblListedesclasses[HEURE DE FIN]),tblListedesclasses[UNIQUE]),tblListedesclasses[UNIQUE],0),2),0)","v":0}]
[null,"12:45:00",{"$f":"IFERROR(INDEX(tblListedesclasses[],MATCH(SUMPRODUCT((tblListedesclasses[JOUR]=tblHoraires[[#Headers],[DIMANCHE]])*($B24>=tblListedesclasses[HEURE DE DÉBUT])*($B24<=tblListedesclasses[HEURE DE FIN]),tblListedesclasses[UNIQUE]),tblListedesclasses[UNIQUE],0),2),0)","v":0},{"$f":"IFERROR(INDEX(tblListedesclasses[],MATCH(SUMPRODUCT((tblListedesclasses[JOUR]=tblHoraires[[#Headers],[LUNDI]])*($B24>=tblListedesclasses[HEURE DE DÉBUT])*($B24<=tblListedesclasses[HEURE DE FIN]),tblListedesclasses[UNIQUE]),tblListedesclasses[UNIQUE],0),2),0)","v":"Ass. Repas"},{"$f":"IFERROR(INDEX(tblListedesclasses[],MATCH(SUMPRODUCT((tblListedesclasses[JOUR]=tblHoraires[[#Headers],[MARDI]])*($B24>=tblListedesclasses[HEURE DE DÉBUT])*($B24<=tblListedesclasses[HEURE DE FIN]),tblListedesclasses[UNIQUE]),tblListedesclasses[UNIQUE],0),2),0)","v":0},{"$f":"IFERROR(INDEX(tblListedesclasses[],MATCH(SUMPRODUCT((tblListedesclasses[JOUR]=tblHoraires[[#Headers],[MERCREDI]])*($B24>=tblListedesclasses[HEURE DE DÉBUT])*($B24<=tblListedesclasses[HEURE DE FIN]),tblListedesclasses[UNIQUE]),tblListedesclasses[UNIQUE],0),2),0)","v":"Eglise"},{"$f":"IFERROR(INDEX(tblListedesclasses[],MATCH(SUMPRODUCT((tblListedesclasses[JOUR]=tblHoraires[[#Headers],[JEUDI]])*($B24>=tblListedesclasses[HEURE DE DÉBUT])*($B24<=tblListedesclasses[HEURE DE FIN]),tblListedesclasses[UNIQUE]),tblListedesclasses[UNIQUE],0),2),0)","v":"Ass. Repas"},{"$f":"IFERROR(INDEX(tblListedesclasses[],MATCH(SUMPRODUCT((tblListedesclasses[JOUR]=tblHoraires[[#Headers],[VENDREDI]])*($B24>=tblListedesclasses[HEURE DE DÉBUT])*($B24<=tblListedesclasses[HEURE DE FIN]),tblListedesclasses[UNIQUE]),tblListedesclasses[UNIQUE],0),2),0)","v":0},{"$f":"IFERROR(INDEX(tblListedesclasses[],MATCH(SUMPRODUCT((tblListedesclasses[JOUR]=tblHoraires[[#Headers],[SAMEDI]])*($B24>=tblListedesclasses[HEURE DE DÉBUT])*($B24<=tblListedesclasses[HEURE DE FIN]),tblListedesclasses[UNIQUE]),tblListedesclasses[UNIQUE],0),2),0)","v":0}]
[null,"13:00:00",{"$f":"IFERROR(INDEX(tblListedesclasses[],MATCH(SUMPRODUCT((tblListedesclasses[JOUR]=tblHoraires[[#Headers],[DIMANCHE]])*($B25>=tblListedesclasses[HEURE DE DÉBUT])*($B25<=tblListedesclasses[HEURE DE FIN]),tblListedesclasses[UNIQUE]),tblListedesclasses[UNIQUE],0),2),0)","v":0},{"$f":"IFERROR(INDEX(tblListedesclasses[],MATCH(SUMPRODUCT((tblListedesclasses[JOUR]=tblHoraires[[#Headers],[LUNDI]])*($B25>=tblListedesclasses[HEURE DE DÉBUT])*($B25<=tblListedesclasses[HEURE DE FIN]),tblListedesclasses[UNIQUE]),tblListedesclasses[UNIQUE],0),2),0)","v":"Ass. Repas"},{"$f":"IFERROR(INDEX(tblListedesclasses[],MATCH(SUMPRODUCT((tblListedesclasses[JOUR]=tblHoraires[[#Headers],[MARDI]])*($B25>=tblListedesclasses[HEURE DE DÉBUT])*($B25<=tblListedesclasses[HEURE DE FIN]),tblListedesclasses[UNIQUE]),tblListedesclasses[UNIQUE],0),2),0)","v":0},{"$f":"IFERROR(INDEX(tblListedesclasses[],MATCH(SUMPRODUCT((tblListedesclasses[JOUR]=tblHoraires[[#Headers],[MERCREDI]])*($B25>=tblListedesclasses[HEURE DE DÉBUT])*($B25<=tblListedesclasses[HEURE DE FIN]),tblListedesclasses[UNIQUE]),tblListedesclasses[UNIQUE],0),2),0)","v":0},{"$f":"IFERROR(INDEX(tblListedesclasses[],MATCH(SUMPRODUCT((tblListedesclasses[JOUR]=tblHoraires[[#Headers],[JEUDI]])*($B25>=tblListedesclasses[HEURE DE DÉBUT])*($B25<=tblListedesclasses[HEURE DE FIN]),tblListedesclasses[UNIQUE]),tblListedesclasses[UNIQUE],0),2),0)","v":"Ass. Repas"},{"$f":"IFERROR(INDEX(tblListedesclasses[],MATCH(SUMPRODUCT((tblListedesclasses[JOUR]=tblHoraires[[#Headers],[VENDREDI]])*($B25>=tblListedesclasses[HEURE DE DÉBUT])*($B25<=tblListedesclasses[HEURE DE FIN]),tblListedesclasses[UNIQUE]),tblListedesclasses[UNIQUE],0),2),0)","v":0},{"$f":"IFERROR(INDEX(tblListedesclasses[],MATCH(SUMPRODUCT((tblListedesclasses[JOUR]=tblHoraires[[#Headers],[SAMEDI]])*($B25>=tblListedesclasses[HEURE DE DÉBUT])*($B25<=tblListedesclasses[HEURE DE FIN]),tblListedesclasses[UNIQUE]),tblListedesclasses[UNIQUE],0),2),0)","v":0}]
[null,"13:15:00",{"$f":"IFERROR(INDEX(tblListedesclasses[],MATCH(SUMPRODUCT((tblListedesclasses[JOUR]=tblHoraires[[#Headers],[DIMANCHE]])*($B26>=tblListedesclasses[HEURE DE DÉBUT])*($B26<=tblListedesclasses[HEURE DE FIN]),tblListedesclasses[UNIQUE]),tblListedesclasses[UNIQUE],0),2),0)","v":0},{"$f":"IFERROR(INDEX(tblListedesclasses[],MATCH(SUMPRODUCT((tblListedesclasses[JOUR]=tblHoraires[[#Headers],[LUNDI]])*($B26>=tblListedesclasses[HEURE DE DÉBUT])*($B26<=tblListedesclasses[HEURE DE FIN]),tblListedesclasses[UNIQUE]),tblListedesclasses[UNIQUE],0),2),0)","v":0},{"$f":"IFERROR(INDEX(tblListedesclasses[],MATCH(SUMPRODUCT((tblListedesclasses[JOUR]=tblHoraires[[#Headers],[MARDI]])*($B26>=tblListedesclasses[HEURE DE DÉBUT])*($B26<=tblListedesclasses[HEURE DE FIN]),tblListedesclasses[UNIQUE]),tblListedesclasses[UNIQUE],0),2),0)","v":0},{"$f":"IFERROR(INDEX(tblListedesclasses[],MATCH(SUMPRODUCT((tblListedesclasses[JOUR]=tblHoraires[[#Headers],[MERCREDI]])*($B26>=tblListedesclasses[HEURE DE DÉBUT])*($B26<=tblListedesclasses[HEURE DE FIN]),tblListedesclasses[UNIQUE]),tblListedesclasses[UNIQUE],0),2),0)","v":0},{"$f":"IFERROR(INDEX(tblListedesclasses[],MATCH(SUMPRODUCT((tblListedesclasses[JOUR]=tblHoraires[[#Headers],[JEUDI]])*($B26>=tblListedesclasses[HEURE DE DÉBUT])*($B26<=tblListedesclasses[HEURE DE FIN]),tblListedesclasses[UNIQUE]),tblListedesclasses[UNIQUE],0),2),0)","v":0},{"$f":"IFERROR(INDEX(tblListedesclasses[],MATCH(SUMPRODUCT((tblListedesclasses[JOUR]=tblHoraires[[#Headers],[VENDREDI]])*($B26>=tblListedesclasses[HEURE DE DÉBUT])*($B26<=tblListedesclasses[HEURE DE FIN]),tblListedesclasses[UNIQUE]),tblListedesclasses[UNIQUE],0),2),0)","v":0},{"$f":"IFERROR(INDEX(tblListedesclasses[],MATCH(SUMPRODUCT((tblListedesclasses[JOUR]=tblHoraires[[#Headers],[SAMEDI]])*($B26>=tblListedesclasses[HEURE DE DÉBUT])*($B26<=tblListedesclasses[HEURE DE FIN]),tblListedesclasses[UNIQUE]),tblListedesclasses[UNIQUE],0),2),0)","v":0}]
[null,"13:30:00",{"$f":"IFERROR(INDEX(tblListedesclasses[],MATCH(SUMPRODUCT((tblListedesclasses[JOUR]=tblHoraires[[#Headers],[DIMANCHE]])*($B27>=tblListedesclasses[HEURE DE DÉBUT])*($B27<=tblListedesclasses[HEURE DE FIN]),tblListedesclasses[UNIQUE]),tblListedesclasses[UNIQUE],0),2),0)","v":0},{"$f":"IFERROR(INDEX(tblListedesclasses[],MATCH(SUMPRODUCT((tblListedesclasses[JOUR]=tblHoraires[[#Headers],[LUNDI]])*($B27>=tblListedesclasses[HEURE DE DÉBUT])*($B27<=tblListedesclasses[HEURE DE FIN]),tblListedesclasses[UNIQUE]),tblListedesclasses[UNIQUE],0),2),0)","v":0},{"$f":"IFERROR(INDEX(tblListedesclasses[],MATCH(SUMPRODUCT((tblListedesclasses[JOUR]=tblHoraires[[#Headers],[MARDI]])*($B27>=tblListedesclasses[HEURE DE DÉBUT])*($B27<=tblListedesclasses[HEURE DE FIN]),tblListedesclasses[UNIQUE]),tblListedesclasses[UNIQUE],0),2),0)","v":0},{"$f":"IFERROR(INDEX(tblListedesclasses[],MATCH(SUMPRODUCT((tblListedesclasses[JOUR]=tblHoraires[[#Headers],[MERCREDI]])*($B27>=tblListedesclasses[HEURE DE DÉBUT])*($B27<=tblListedesclasses[HEURE DE FIN]),tblListedesclasses[UNIQUE]),tblListedesclasses[UNIQUE],0),2),0)","v":0},{"$f":"IFERROR(INDEX(tblListedesclasses[],MATCH(SUMPRODUCT((tblListedesclasses[JOUR]=tblHoraires[[#Headers],[JEUDI]])*($B27>=tblListedesclasses[HEURE DE DÉBUT])*($B27<=tblListedesclasses[HEURE DE FIN]),tblListedesclasses[UNIQUE]),tblListedesclasses[UNIQUE],0),2),0)","v":0},{"$f":"IFERROR(INDEX(tblListedesclasses[],MATCH(SUMPRODUCT((tblListedesclasses[JOUR]=tblHoraires[[#Headers],[VENDREDI]])*($B27>=tblListedesclasses[HEURE DE DÉBUT])*($B27<=tblListedesclasses[HEURE DE FIN]),tblListedesclasses[UNIQUE]),tblListedesclasses[UNIQUE],0),2),0)","v":0},{"$f":"IFERROR(INDEX(tblListedesclasses[],MATCH(SUMPRODUCT((tblListedesclasses[JOUR]=tblHoraires[[#Headers],[SAMEDI]])*($B27>=tblListedesclasses[HEURE DE DÉBUT])*($B27<=tblListedesclasses[HEURE DE FIN]),tblListedesclasses[UNIQUE]),tblListedesclasses[UNIQUE],0),2),0)","v":0}]
[null,"13:45:00",{"$f":"IFERROR(INDEX(tblListedesclasses[],MATCH(SUMPRODUCT((tblListedesclasses[JOUR]=tblHoraires[[#Headers],[DIMANCHE]])*($B28>=tblListedesclasses[HEURE DE DÉBUT])*($B28<=tblListedesclasses[HEURE DE FIN]),tblListedesclasses[UNIQUE]),tblListedesclasses[UNIQUE],0),2),0)","v":0},{"$f":"IFERROR(INDEX(tblListedesclasses[],MATCH(SUMPRODUCT((tblListedesclasses[JOUR]=tblHoraires[[#Headers],[LUNDI]])*($B28>=tblListedesclasses[HEURE DE DÉBUT])*($B28<=tblListedesclasses[HEURE DE FIN]),tblListedesclasses[UNIQUE]),tblListedesclasses[UNIQUE],0),2),0)","v":0},{"$f":"IFERROR(INDEX(tblListedesclasses[],MATCH(SUMPRODUCT((tblListedesclasses[JOUR]=tblHoraires[[#Headers],[MARDI]])*($B28>=tblListedesclasses[HEURE DE DÉBUT])*($B28<=tblListedesclasses[HEURE DE FIN]),tblListedesclasses[UNIQUE]),tblListedesclasses[UNIQUE],0),2),0)","v":0},{"$f":"IFERROR(INDEX(tblListedesclasses[],MATCH(SUMPRODUCT((tblListedesclasses[JOUR]=tblHoraires[[#Headers],[MERCREDI]])*($B28>=tblListedesclasses[HEURE DE DÉBUT])*($B28<=tblListedesclasses[HEURE DE FIN]),tblListedesclasses[UNIQUE]),tblListedesclasses[UNIQUE],0),2),0)","v":0},{"$f":"IFERROR(INDEX(tblListedesclasses[],MATCH(SUMPRODUCT((tblListedesclasses[JOUR]=tblHoraires[[#Headers],[JEUDI]])*($B28>=tblListedesclasses[HEURE DE DÉBUT])*($B28<=tblListedesclasses[HEURE DE FIN]),tblListedesclasses[UNIQUE]),tblListedesclasses[UNIQUE],0),2),0)","v":0},{"$f":"IFERROR(INDEX(tblListedesclasses[],MATCH(SUMPRODUCT((tblListedesclasses[JOUR]=tblHoraires[[#Headers],[VENDREDI]])*($B28>=tblListedesclasses[HEURE DE DÉBUT])*($B28<=tblListedesclasses[HEURE DE FIN]),tblListedesclasses[UNIQUE]),tblListedesclasses[UNIQUE],0),2),0)","v":0},{"$f":"IFERROR(INDEX(tblListedesclasses[],MATCH(SUMPRODUCT((tblListedesclasses[JOUR]=tblHoraires[[#Headers],[SAMEDI]])*($B28>=tblListedesclasses[HEURE DE DÉBUT])*($B28<=tblListedesclasses[HEURE DE FIN]),tblListedesclasses[UNIQUE]),tblListedesclasses[UNIQUE],0),2),0)","v":0}]
[null,"14:00:00",{"$f":"IFERROR(INDEX(tblListedesclasses[],MATCH(SUMPRODUCT((tblListedesclasses[JOUR]=tblHoraires[[#Headers],[DIMANCHE]])*($B29>=tblListedesclasses[HEURE DE DÉBUT])*($B29<=tblListedesclasses[HEURE DE FIN]),tblListedesclasses[UNIQUE]),tblListedesclasses[UNIQUE],0),2),0)","v":0},{"$f":"IFERROR(INDEX(tblListedesclasses[],MATCH(SUMPRODUCT((tblListedesclasses[JOUR]=tblHoraires[[#Headers],[LUNDI]])*($B29>=tblListedesclasses[HEURE DE DÉBUT])*($B29<=tblListedesclasses[HEURE DE FIN]),tblListedesclasses[UNIQUE]),tblListedesclasses[UNIQUE],0),2),0)","v":0},{"$f":"IFERROR(INDEX(tblListedesclasses[],MATCH(SUMPRODUCT((tblListedesclasses[JOUR]=tblHoraires[[#Headers],[MARDI]])*($B29>=tblListedesclasses[HEURE DE DÉBUT])*($B29<=tblListedesclasses[HEURE DE FIN]),tblListedesclasses[UNIQUE]),tblListedesclasses[UNIQUE],0),2),0)","v":0},{"$f":"IFERROR(INDEX(tblListedesclasses[],MATCH(SUMPRODUCT((tblListedesclasses[JOUR]=tblHoraires[[#Headers],[MERCREDI]])*($B29>=tblListedesclasses[HEURE DE DÉBUT])*($B29<=tblListedesclasses[HEURE DE FIN]),tblListedesclasses[UNIQUE]),tblListedesclasses[UNIQUE],0),2),0)","v":0},{"$f":"IFERROR(INDEX(tblListedesclasses[],MATCH(SUMPRODUCT((tblListedesclasses[JOUR]=tblHoraires[[#Headers],[JEUDI]])*($B29>=tblListedesclasses[HEURE DE DÉBUT])*($B29<=tblListedesclasses[HEURE DE FIN]),tblListedesclasses[UNIQUE]),tblListedesclasses[UNIQUE],0),2),0)","v":0},{"$f":"IFERROR(INDEX(tblListedesclasses[],MATCH(SUMPRODUCT((tblListedesclasses[JOUR]=tblHoraires[[#Headers],[VENDREDI]])*($B29>=tblListedesclasses[HEURE DE DÉBUT])*($B29<=tblListedesclasses[HEURE DE FIN]),tblListedesclasses[UNIQUE]),tblListedesclasses[UNIQUE],0),2),0)","v":0},{"$f":"IFERROR(INDEX(tblListedesclasses[],MATCH(SUMPRODUCT((tblListedesclasses[JOUR]=tblHoraires[[#Headers],[SAMEDI]])*($B29>=tblListedesclasses[HEURE DE DÉBUT])*($B29<=tblListedesclasses[HEURE DE FIN]),tblListedesclasses[UNIQUE]),tblListedesclasses[UNIQUE],0),2),0)","v":0}]
[null,"14:15:00",{"$f":"IFERROR(INDEX(tblListedesclasses[],MATCH(SUMPRODUCT((tblListedesclasses[JOUR]=tblHoraires[[#Headers],[DIMANCHE]])*($B30>=tblListedesclasses[HEURE DE DÉBUT])*($B30<=tblListedesclasses[HEURE DE FIN]),tblListedesclasses[UNIQUE]),tblListedesclasses[UNIQUE],0),2),0)","v":0},{"$f":"IFERROR(INDEX(tblListedesclasses[],MATCH(SUMPRODUCT((tblListedesclasses[JOUR]=tblHoraires[[#Headers],[LUNDI]])*($B30>=tblListedesclasses[HEURE DE DÉBUT])*($B30<=tblListedesclasses[HEURE DE FIN]),tblListedesclasses[UNIQUE]),tblListedesclasses[UNIQUE],0),2),0)","v":0},{"$f":"IFERROR(INDEX(tblListedesclasses[],MATCH(SUMPRODUCT((tblListedesclasses[JOUR]=tblHoraires[[#Headers],[MARDI]])*($B30>=tblListedesclasses[HEURE DE DÉBUT])*($B30<=tblListedesclasses[HEURE DE FIN]),tblListedesclasses[UNIQUE]),tblListedesclasses[UNIQUE],0),2),0)","v":0},{"$f":"IFERROR(INDEX(tblListedesclasses[],MATCH(SUMPRODUCT((tblListedesclasses[JOUR]=tblHoraires[[#Headers],[MERCREDI]])*($B30>=tblListedesclasses[HEURE DE DÉBUT])*($B30<=tblListedesclasses[HEURE DE FIN]),tblListedesclasses[UNIQUE]),tblListedesclasses[UNIQUE],0),2),0)","v":"Charles"},{"$f":"IFERROR(INDEX(tblListedesclasses[],MATCH(SUMPRODUCT((tblListedesclasses[JOUR]=tblHoraires[[#Headers],[JEUDI]])*($B30>=tblListedesclasses[HEURE DE DÉBUT])*($B30<=tblListedesclasses[HEURE DE FIN]),tblListedesclasses[UNIQUE]),tblListedesclasses[UNIQUE],0),2),0)","v":0},{"$f":"IFERROR(INDEX(tblListedesclasses[],MATCH(SUMPRODUCT((tblListedesclasses[JOUR]=tblHoraires[[#Headers],[VENDREDI]])*($B30>=tblListedesclasses[HEURE DE DÉBUT])*($B30<=tblListedesclasses[HEURE DE FIN]),tblListedesclasses[UNIQUE]),tblListedesclasses[UNIQUE],0),2),0)","v":0},{"$f":"IFERROR(INDEX(tblListedesclasses[],MATCH(SUMPRODUCT((tblListedesclasses[JOUR]=tblHoraires[[#Headers],[SAMEDI]])*($B30>=tblListedesclasses[HEURE DE DÉBUT])*($B30<=tblListedesclasses[HEURE DE FIN]),tblListedesclasses[UNIQUE]),tblListedesclasses[UNIQUE],0),2),0)","v":0}]
[null,"14:30:00",{"$f":"IFERROR(INDEX(tblListedesclasses[],MATCH(SUMPRODUCT((tblListedesclasses[JOUR]=tblHoraires[[#Headers],[DIMANCHE]])*($B31>=tblListedesclasses[HEURE DE DÉBUT])*($B31<=tblListedesclasses[HEURE DE FIN]),tblListedesclasses[UNIQUE]),tblListedesclasses[UNIQUE],0),2),0)","v":0},{"$f":"IFERROR(INDEX(tblListedesclasses[],MATCH(SUMPRODUCT((tblListedesclasses[JOUR]=tblHoraires[[#Headers],[LUNDI]])*($B31>=tblListedesclasses[HEURE DE DÉBUT])*($B31<=tblListedesclasses[HEURE DE FIN]),tblListedesclasses[UNIQUE]),tblListedesclasses[UNIQUE],0),2),0)","v":0},{"$f":"IFERROR(INDEX(tblListedesclasses[],MATCH(SUMPRODUCT((tblListedesclasses[JOUR]=tblHoraires[[#Headers],[MARDI]])*($B31>=tblListedesclasses[HEURE DE DÉBUT])*($B31<=tblListedesclasses[HEURE DE FIN]),tblListedesclasses[UNIQUE]),tblListedesclasses[UNIQUE],0),2),0)","v":0},{"$f":"IFERROR(INDEX(tblListedesclasses[],MATCH(SUMPRODUCT((tblListedesclasses[JOUR]=tblHoraires[[#Headers],[MERCREDI]])*($B31>=tblListedesclasses[HEURE DE DÉBUT])*($B31<=tblListedesclasses[HEURE DE FIN]),tblListedesclasses[UNIQUE]),tblListedesclasses[UNIQUE],0),2),0)","v":"Charles"},{"$f":"IFERROR(INDEX(tblListedesclasses[],MATCH(SUMPRODUCT((tblListedesclasses[JOUR]=tblHoraires[[#Headers],[JEUDI]])*($B31>=tblListedesclasses[HEURE DE DÉBUT])*($B31<=tblListedesclasses[HEURE DE FIN]),tblListedesclasses[UNIQUE]),tblListedesclasses[UNIQUE],0),2),0)","v":0},{"$f":"IFERROR(INDEX(tblListedesclasses[],MATCH(SUMPRODUCT((tblListedesclasses[JOUR]=tblHoraires[[#Headers],[VENDREDI]])*($B31>=tblListedesclasses[HEURE DE DÉBUT])*($B31<=tblListedesclasses[HEURE DE FIN]),tblListedesclasses[UNIQUE]),tblListedesclasses[UNIQUE],0),2),0)","v":0},{"$f":"IFERROR(INDEX(tblListedesclasses[],MATCH(SUMPRODUCT((tblListedesclasses[JOUR]=tblHoraires[[#Headers],[SAMEDI]])*($B31>=tblListedesclasses[HEURE DE DÉBUT])*($B31<=tblListedesclasses[HEURE DE FIN]),tblListedesclasses[UNIQUE]),tblListedesclasses[UNIQUE],0),2),0)","v":0}]
[null,"14:45:00",{"$f":"IFERROR(INDEX(tblListedesclasses[],MATCH(SUMPRODUCT((tblListedesclasses[JOUR]=tblHoraires[[#Headers],[DIMANCHE]])*($B32>=tblListedesclasses[HEURE DE DÉBUT])*($B32<=tblListedesclasses[HEURE DE FIN]),tblListedesclasses[UNIQUE]),tblListedesclasses[UNIQUE],0),2),0)","v":0},{"$f":"IFERROR(INDEX(tblListedesclasses[],MATCH(SUMPRODUCT((tblListedesclasses[JOUR]=tblHoraires[[#Headers],[LUNDI]])*($B32>=tblListedesclasses[HEURE DE DÉBUT])*($B32<=tblListedesclasses[HEURE DE FIN]),tblListedesclasses[UNIQUE]),tblListedesclasses[UNIQUE],0),2),0)","v":0},{"$f":"IFERROR(INDEX(tblListedesclasses[],MATCH(SUMPRODUCT((tblListedesclasses[JOUR]=tblHoraires[[#Headers],[MARDI]])*($B32>=tblListedesclasses[HEURE DE DÉBUT])*($B32<=tblListedesclasses[HEURE DE FIN]),tblListedesclasses[UNIQUE]),tblListedesclasses[UNIQUE],0),2),0)","v":0},{"$f":"IFERROR(INDEX(tblListedesclasses[],MATCH(SUMPRODUCT((tblListedesclasses[JOUR]=tblHoraires[[#Headers],[MERCREDI]])*($B32>=tblListedesclasses[HEURE DE DÉBUT])*($B32<=tblListedesclasses[HEURE DE FIN]),tblListedesclasses[UNIQUE]),tblListedesclasses[UNIQUE],0),2),0)","v":"Charles"},{"$f":"IFERROR(INDEX(tblListedesclasses[],MATCH(SUMPRODUCT((tblListedesclasses[JOUR]=tblHoraires[[#Headers],[JEUDI]])*($B32>=tblListedesclasses[HEURE DE DÉBUT])*($B32<=tblListedesclasses[HEURE DE FIN]),tblListedesclasses[UNIQUE]),tblListedesclasses[UNIQUE],0),2),0)","v":0},{"$f":"IFERROR(INDEX(tblListedesclasses[],MATCH(SUMPRODUCT((tblListedesclasses[JOUR]=tblHoraires[[#Headers],[VENDREDI]])*($B32>=tblListedesclasses[HEURE DE DÉBUT])*($B32<=tblListedesclasses[HEURE DE FIN]),tblListedesclasses[UNIQUE]),tblListedesclasses[UNIQUE],0),2),0)","v":0},{"$f":"IFERROR(INDEX(tblListedesclasses[],MATCH(SUMPRODUCT((tblListedesclasses[JOUR]=tblHoraires[[#Headers],[SAMEDI]])*($B32>=tblListedesclasses[HEURE DE DÉBUT])*($B32<=tblListedesclasses[HEURE DE FIN]),tblListedesclasses[UNIQUE]),tblListedesclasses[UNIQUE],0),2),0)","v":0}]
[null,"15:00:00",{"$f":"IFERROR(INDEX(tblListedesclasses[],MATCH(SUMPRODUCT((tblListedesclasses[JOUR]=tblHoraires[[#Headers],[DIMANCHE]])*($B33>=tblListedesclasses[HEURE DE DÉBUT])*($B33<=tblListedesclasses[HEURE DE FIN]),tblListedesclasses[UNIQUE]),tblListedesclasses[UNIQUE],0),2),0)","v":0},{"$f":"IFERROR(INDEX(tblListedesclasses[],MATCH(SUMPRODUCT((tblListedesclasses[JOUR]=tblHoraires[[#Headers],[LUNDI]])*($B33>=tblListedesclasses[HEURE DE DÉBUT])*($B33<=tblListedesclasses[HEURE DE FIN]),tblListedesclasses[UNIQUE]),tblListedesclasses[UNIQUE],0),2),0)","v":0},{"$f":"IFERROR(INDEX(tblListedesclasses[],MATCH(SUMPRODUCT((tblListedesclasses[JOUR]=tblHoraires[[#Headers],[MARDI]])*($B33>=tblListedesclasses[HEURE DE DÉBUT])*($B33<=tblListedesclasses[HEURE DE FIN]),tblListedesclasses[UNIQUE]),tblListedesclasses[UNIQUE],0),2),0)","v":0},{"$f":"IFERROR(INDEX(tblListedesclasses[],MATCH(SUMPRODUCT((tblListedesclasses[JOUR]=tblHoraires[[#Headers],[MERCREDI]])*($B33>=tblListedesclasses[HEURE DE DÉBUT])*($B33<=tblListedesclasses[HEURE DE FIN]),tblListedesclasses[UNIQUE]),tblListedesclasses[UNIQUE],0),2),0)","v":"Charles"},{"$f":"IFERROR(INDEX(tblListedesclasses[],MATCH(SUMPRODUCT((tblListedesclasses[JOUR]=tblHoraires[[#Headers],[JEUDI]])*($B33>=tblListedesclasses[HEURE DE DÉBUT])*($B33<=tblListedesclasses[HEURE DE FIN]),tblListedesclasses[UNIQUE]),tblListedesclasses[UNIQUE],0),2),0)","v":0},{"$f":"IFERROR(INDEX(tblListedesclasses[],MATCH(SUMPRODUCT((tblListedesclasses[JOUR]=tblHoraires[[#Headers],[VENDREDI]])*($B33>=tblListedesclasses[HEURE DE DÉBUT])*($B33<=tblListedesclasses[HEURE DE FIN]),tblListedesclasses[UNIQUE]),tblListedesclasses[UNIQUE],0),2),0)","v":0},{"$f":"IFERROR(INDEX(tblListedesclasses[],MATCH(SUMPRODUCT((tblListedesclasses[JOUR]=tblHoraires[[#Headers],[SAMEDI]])*($B33>=tblListedesclasses[HEURE DE DÉBUT])*($B33<=tblListedesclasses[HEURE DE FIN]),tblListedesclasses[UNIQUE]),tblListedesclasses[UNIQUE],0),2),0)","v":0}]
[null,"15:15:00",{"$f":"IFERROR(INDEX(tblListedesclasses[],MATCH(SUMPRODUCT((tblListedesclasses[JOUR]=tblHoraires[[#Headers],[DIMANCHE]])*($B34>=tblListedesclasses[HEURE DE DÉBUT])*($B34<=tblListedesclasses[HEURE DE FIN]),tblListedesclasses[UNIQUE]),tblListedesclasses[UNIQUE],0),2),0)","v":0},{"$f":"IFERROR(INDEX(tblListedesclasses[],MATCH(SUMPRODUCT((tblListedesclasses[JOUR]=tblHoraires[[#Headers],[LUNDI]])*($B34>=tblListedesclasses[HEURE DE DÉBUT])*($B34<=tblListedesclasses[HEURE DE FIN]),tblListedesclasses[UNIQUE]),tblListedesclasses[UNIQUE],0),2),0)","v":0},{"$f":"IFERROR(INDEX(tblListedesclasses[],MATCH(SUMPRODUCT((tblListedesclasses[JOUR]=tblHoraires[[#Headers],[MARDI]])*($B34>=tblListedesclasses[HEURE DE DÉBUT])*($B34<=tblListedesclasses[HEURE DE FIN]),tblListedesclasses[UNIQUE]),tblListedesclasses[UNIQUE],0),2),0)","v":0},{"$f":"IFERROR(INDEX(tblListedesclasses[],MATCH(SUMPRODUCT((tblListedesclasses[JOUR]=tblHoraires[[#Headers],[MERCREDI]])*($B34>=tblListedesclasses[HEURE DE DÉBUT])*($B34<=tblListedesclasses[HEURE DE FIN]),tblListedesclasses[UNIQUE]),tblListedesclasses[UNIQUE],0),2),0)","v":0},{"$f":"IFERROR(INDEX(tblListedesclasses[],MATCH(SUMPRODUCT((tblListedesclasses[JOUR]=tblHoraires[[#Headers],[JEUDI]])*($B34>=tblListedesclasses[HEURE DE DÉBUT])*($B34<=tblListedesclasses[HEURE DE FIN]),tblListedesclasses[UNIQUE]),tblListedesclasses[UNIQUE],0),2),0)","v":0},{"$f":"IFERROR(INDEX(tblListedesclasses[],MATCH(SUMPRODUCT((tblListedesclasses[JOUR]=tblHoraires[[#Headers],[VENDREDI]])*($B34>=tblListedesclasses[HEURE DE DÉBUT])*($B34<=tblListedesclasses[HEURE DE FIN]),tblListedesclasses[UNIQUE]),tblListedesclasses[UNIQUE],0),2),0)","v":0},{"$f":"IFERROR(INDEX(tblListedesclasses[],MATCH(SUMPRODUCT((tblListedesclasses[JOUR]=tblHoraires[[#Headers],[SAMEDI]])*($B34>=tblListedesclasses[HEURE DE DÉBUT])*($B34<=tblListedesclasses[HEURE DE FIN]),tblListedesclasses[UNIQUE]),tblListedesclasses[UNIQUE],0),2),0)","v":0}]
[null,"15:30:00",{"$f":"IFERROR(INDEX(tblListedesclasses[],MATCH(SUMPRODUCT((tblListedesclasses[JOUR]=tblHoraires[[#Headers],[DIMANCHE]])*($B35>=tblListedesclasses[HEURE DE DÉBUT])*($B35<=tblListedesclasses[HEURE DE FIN]),tblListedesclasses[UNIQUE]),tblListedesclasses[UNIQUE],0),2),0)","v":0},{"$f":"IFERROR(INDEX(tblListedesclasses[],MATCH(SUMPRODUCT((tblListedesclasses[JOUR]=tblHoraires[[#Headers],[LUNDI]])*($B35>=tblListedesclasses[HEURE DE DÉBUT])*($B35<=tblListedesclasses[HEURE DE FIN]),tblListedesclasses[UNIQUE]),tblListedesclasses[UNIQUE],0),2),0)","v":0},{"$f":"IFERROR(INDEX(tblListedesclasses[],MATCH(SUMPRODUCT((tblListedesclasses[JOUR]=tblHoraires[[#Headers],[MARDI]])*($B35>=tblListedesclasses[HEURE DE DÉBUT])*($B35<=tblListedesclasses[HEURE DE FIN]),tblListedesclasses[UNIQUE]),tblListedesclasses[UNIQUE],0),2),0)","v":0},{"$f":"IFERROR(INDEX(tblListedesclasses[],MATCH(SUMPRODUCT((tblListedesclasses[JOUR]=tblHoraires[[#Headers],[MERCREDI]])*($B35>=tblListedesclasses[HEURE DE DÉBUT])*($B35<=tblListedesclasses[HEURE DE FIN]),tblListedesclasses[UNIQUE]),tblListedesclasses[UNIQUE],0),2),0)","v":0},{"$f":"IFERROR(INDEX(tblListedesclasses[],MATCH(SUMPRODUCT((tblListedesclasses[JOUR]=tblHoraires[[#Headers],[JEUDI]])*($B35>=tblListedesclasses[HEURE DE DÉBUT])*($B35<=tblListedesclasses[HEURE DE FIN]),tblListedesclasses[UNIQUE]),tblListedesclasses[UNIQUE],0),2),0)","v":0},{"$f":"IFERROR(INDEX(tblListedesclasses[],MATCH(SUMPRODUCT((tblListedesclasses[JOUR]=tblHoraires[[#Headers],[VENDREDI]])*($B35>=tblListedesclasses[HEURE DE DÉBUT])*($B35<=tblListedesclasses[HEURE DE FIN]),tblListedesclasses[UNIQUE]),tblListedesclasses[UNIQUE],0),2),0)","v":0},{"$f":"IFERROR(INDEX(tblListedesclasses[],MATCH(SUMPRODUCT((tblListedesclasses[JOUR]=tblHoraires[[#Headers],[SAMEDI]])*($B35>=tblListedesclasses[HEURE DE DÉBUT])*($B35<=tblListedesclasses[HEURE DE FIN]),tblListedesclasses[UNIQUE]),tblListedesclasses[UNIQUE],0),2),0)","v":0}]
[null,"15:45:00",{"$f":"IFERROR(INDEX(tblListedesclasses[],MATCH(SUMPRODUCT((tblListedesclasses[JOUR]=tblHoraires[[#Headers],[DIMANCHE]])*($B36>=tblListedesclasses[HEURE DE DÉBUT])*($B36<=tblListedesclasses[HEURE DE FIN]),tblListedesclasses[UNIQUE]),tblListedesclasses[UNIQUE],0),2),0)","v":0},{"$f":"IFERROR(INDEX(tblListedesclasses[],MATCH(SUMPRODUCT((tblListedesclasses[JOUR]=tblHoraires[[#Headers],[LUNDI]])*($B36>=tblListedesclasses[HEURE DE DÉBUT])*($B36<=tblListedesclasses[HEURE DE FIN]),tblListedesclasses[UNIQUE]),tblListedesclasses[UNIQUE],0),2),0)","v":0},{"$f":"IFERROR(INDEX(tblListedesclasses[],MATCH(SUMPRODUCT((tblListedesclasses[JOUR]=tblHoraires[[#Headers],[MARDI]])*($B36>=tblListedesclasses[HEURE DE DÉBUT])*($B36<=tblListedesclasses[HEURE DE FIN]),tblListedesclasses[UNIQUE]),tblListedesclasses[UNIQUE],0),2),0)","v":0},{"$f":"IFERROR(INDEX(tblListedesclasses[],MATCH(SUMPRODUCT((tblListedesclasses[JOUR]=tblHoraires[[#Headers],[MERCREDI]])*($B36>=tblListedesclasses[HEURE DE DÉBUT])*($B36<=tblListedesclasses[HEURE DE FIN]),tblListedesclasses[UNIQUE]),tblListedesclasses[UNIQUE],0),2),0)","v":0},{"$f":"IFERROR(INDEX(tblListedesclasses[],MATCH(SUMPRODUCT((tblListedesclasses[JOUR]=tblHoraires[[#Headers],[JEUDI]])*($B36>=tblListedesclasses[HEURE DE DÉBUT])*($B36<=tblListedesclasses[HEURE DE FIN]),tblListedesclasses[UNIQUE]),tblListedesclasses[UNIQUE],0),2),0)","v":0},{"$f":"IFERROR(INDEX(tblListedesclasses[],MATCH(SUMPRODUCT((tblListedesclasses[JOUR]=tblHoraires[[#Headers],[VENDREDI]])*($B36>=tblListedesclasses[HEURE DE DÉBUT])*($B36<=tblListedesclasses[HEURE DE FIN]),tblListedesclasses[UNIQUE]),tblListedesclasses[UNIQUE],0),2),0)","v":0},{"$f":"IFERROR(INDEX(tblListedesclasses[],MATCH(SUMPRODUCT((tblListedesclasses[JOUR]=tblHoraires[[#Headers],[SAMEDI]])*($B36>=tblListedesclasses[HEURE DE DÉBUT])*($B36<=tblListedesclasses[HEURE DE FIN]),tblListedesclasses[UNIQUE]),tblListedesclasses[UNIQUE],0),2),0)","v":0}]
[null,"16:00:00",{"$f":"IFERROR(INDEX(tblListedesclasses[],MATCH(SUMPRODUCT((tblListedesclasses[JOUR]=tblHoraires[[#Headers],[DIMANCHE]])*($B37>=tblListedesclasses[HEURE DE DÉBUT])*($B37<=tblListedesclasses[HEURE DE FIN]),tblListedesclasses[UNIQUE]),tblListedesclasses[UNIQUE],0),2),0)","v":0},{"$f":"IFERROR(INDEX(tblListedesclasses[],MATCH(SUMPRODUCT((tblListedesclasses[JOUR]=tblHoraires[[#Headers],[LUNDI]])*($B37>=tblListedesclasses[HEURE DE DÉBUT])*($B37<=tblListedesclasses[HEURE DE FIN]),tblListedesclasses[UNIQUE]),tblListedesclasses[UNIQUE],0),2),0)","v":0},{"$f":"IFERROR(INDEX(tblListedesclasses[],MATCH(SUMPRODUCT((tblListedesclasses[JOUR]=tblHoraires[[#Headers],[MARDI]])*($B37>=tblListedesclasses[HEURE DE DÉBUT])*($B37<=tblListedesclasses[HEURE DE FIN]),tblListedesclasses[UNIQUE]),tblListedesclasses[UNIQUE],0),2),0)","v":0},{"$f":"IFERROR(INDEX(tblListedesclasses[],MATCH(SUMPRODUCT((tblListedesclasses[JOUR]=tblHoraires[[#Headers],[MERCREDI]])*($B37>=tblListedesclasses[HEURE DE DÉBUT])*($B37<=tblListedesclasses[HEURE DE FIN]),tblListedesclasses[UNIQUE]),tblListedesclasses[UNIQUE],0),2),0)","v":0},{"$f":"IFERROR(INDEX(tblListedesclasses[],MATCH(SUMPRODUCT((tblListedesclasses[JOUR]=tblHoraires[[#Headers],[JEUDI]])*($B37>=tblListedesclasses[HEURE DE DÉBUT])*($B37<=tblListedesclasses[HEURE DE FIN]),tblListedesclasses[UNIQUE]),tblListedesclasses[UNIQUE],0),2),0)","v":0},{"$f":"IFERROR(INDEX(tblListedesclasses[],MATCH(SUMPRODUCT((tblListedesclasses[JOUR]=tblHoraires[[#Headers],[VENDREDI]])*($B37>=tblListedesclasses[HEURE DE DÉBUT])*($B37<=tblListedesclasses[HEURE DE FIN]),tblListedesclasses[UNIQUE]),tblListedesclasses[UNIQUE],0),2),0)","v":0},{"$f":"IFERROR(INDEX(tblListedesclasses[],MATCH(SUMPRODUCT((tblListedesclasses[JOUR]=tblHoraires[[#Headers],[SAMEDI]])*($B37>=tblListedesclasses[HEURE DE DÉBUT])*($B37<=tblListedesclasses[HEURE DE FIN]),tblListedesclasses[UNIQUE]),tblListedesclasses[UNIQUE],0),2),0)","v":0}]
[null,"16:15:00",{"$f":"IFERROR(INDEX(tblListedesclasses[],MATCH(SUMPRODUCT((tblListedesclasses[JOUR]=tblHoraires[[#Headers],[DIMANCHE]])*($B38>=tblListedesclasses[HEURE DE DÉBUT])*($B38<=tblListedesclasses[HEURE DE FIN]),tblListedesclasses[UNIQUE]),tblListedesclasses[UNIQUE],0),2),0)","v":0},{"$f":"IFERROR(INDEX(tblListedesclasses[],MATCH(SUMPRODUCT((tblListedesclasses[JOUR]=tblHoraires[[#Headers],[LUNDI]])*($B38>=tblListedesclasses[HEURE DE DÉBUT])*($B38<=tblListedesclasses[HEURE DE FIN]),tblListedesclasses[UNIQUE]),tblListedesclasses[UNIQUE],0),2),0)","v":"Maria"},{"$f":"IFERROR(INDEX(tblListedesclasses[],MATCH(SUMPRODUCT((tblListedesclasses[JOUR]=tblHoraires[[#Headers],[MARDI]])*($B38>=tblListedesclasses[HEURE DE DÉBUT])*($B38<=tblListedesclasses[HEURE DE FIN]),tblListedesclasses[UNIQUE]),tblListedesclasses[UNIQUE],0),2),0)","v":0},{"$f":"IFERROR(INDEX(tblListedesclasses[],MATCH(SUMPRODUCT((tblListedesclasses[JOUR]=tblHoraires[[#Headers],[MERCREDI]])*($B38>=tblListedesclasses[HEURE DE DÉBUT])*($B38<=tblListedesclasses[HEURE DE FIN]),tblListedesclasses[UNIQUE]),tblListedesclasses[UNIQUE],0),2),0)","v":0},{"$f":"IFERROR(INDEX(tblListedesclasses[],MATCH(SUMPRODUCT((tblListedesclasses[JOUR]=tblHoraires[[#Headers],[JEUDI]])*($B38>=tblListedesclasses[HEURE DE DÉBUT])*($B38<=tblListedesclasses[HEURE DE FIN]),tblListedesclasses[UNIQUE]),tblListedesclasses[UNIQUE],0),2),0)","v":0},{"$f":"IFERROR(INDEX(tblListedesclasses[],MATCH(SUMPRODUCT((tblListedesclasses[JOUR]=tblHoraires[[#Headers],[VENDREDI]])*($B38>=tblListedesclasses[HEURE DE DÉBUT])*($B38<=tblListedesclasses[HEURE DE FIN]),tblListedesclasses[UNIQUE]),tblListedesclasses[UNIQUE],0),2),0)","v":0},{"$f":"IFERROR(INDEX(tblListedesclasses[],MATCH(SUMPRODUCT((tblListedesclasses[JOUR]=tblHoraires[[#Headers],[SAMEDI]])*($B38>=tblListedesclasses[HEURE DE DÉBUT])*($B38<=tblListedesclasses[HEURE DE FIN]),tblListedesclasses[UNIQUE]),tblListedesclasses[UNIQUE],0),2),0)","v":0}]
[null,"16:30:00",{"$f":"IFERROR(INDEX(tblListedesclasses[],MATCH(SUMPRODUCT((tblListedesclasses[JOUR]=tblHoraires[[#Headers],[DIMANCHE]])*($B39>=tblListedesclasses[HEURE DE DÉBUT])*($B39<=tblListedesclasses[HEURE DE FIN]),tblListedesclasses[UNIQUE]),tblListedesclasses[UNIQUE],0),2),0)","v":0},{"$f":"IFERROR(INDEX(tblListedesclasses[],MATCH(SUMPRODUCT((tblListedesclasses[JOUR]=tblHoraires[[#Headers],[LUNDI]])*($B39>=tblListedesclasses[HEURE DE DÉBUT])*($B39<=tblListedesclasses[HEURE DE FIN]),tblListedesclasses[UNIQUE]),tblListedesclasses[UNIQUE],0),2),0)","v":"Maria"},{"$f":"IFERROR(INDEX(tblListedesclasses[],MATCH(SUMPRODUCT((tblListedesclasses[JOUR]=tblHoraires[[#Headers],[MARDI]])*($B39>=tblListedesclasses[HEURE DE DÉBUT])*($B39<=tblListedesclasses[HEURE DE FIN]),tblListedesclasses[UNIQUE]),tblListedesclasses[UNIQUE],0),2),0)","v":0},{"$f":"IFERROR(INDEX(tblListedesclasses[],MATCH(SUMPRODUCT((tblListedesclasses[JOUR]=tblHoraires[[#Headers],[MERCREDI]])*($B39>=tblListedesclasses[HEURE DE DÉBUT])*($B39<=tblListedesclasses[HEURE DE FIN]),tblListedesclasses[UNIQUE]),tblListedesclasses[UNIQUE],0),2),0)","v":0},{"$f":"IFERROR(INDEX(tblListedesclasses[],MATCH(SUMPRODUCT((tblListedesclasses[JOUR]=tblHoraires[[#Headers],[JEUDI]])*($B39>=tblListedesclasses[HEURE DE DÉBUT])*($B39<=tblListedesclasses[HEURE DE FIN]),tblListedesclasses[UNIQUE]),tblListedesclasses[UNIQUE],0),2),0)","v":0},{"$f":"IFERROR(INDEX(tblListedesclasses[],MATCH(SUMPRODUCT((tblListedesclasses[JOUR]=tblHoraires[[#Headers],[VENDREDI]])*($B39>=tblListedesclasses[HEURE DE DÉBUT])*($B39<=tblListedesclasses[HEURE DE FIN]),tblListedesclasses[UNIQUE]),tblListedesclasses[UNIQUE],0),2),0)","v":"Bruno"},{"$f":"IFERROR(INDEX(tblListedesclasses[],MATCH(SUMPRODUCT((tblListedesclasses[JOUR]=tblHoraires[[#Headers],[SAMEDI]])*($B39>=tblListedesclasses[HEURE DE DÉBUT])*($B39<=tblListedesclasses[HEURE DE FIN]),tblListedesclasses[UNIQUE]),tblListedesclasses[UNIQUE],0),2),0)","v":0}]
[null,"16:45:00",{"$f":"IFERROR(INDEX(tblListedesclasses[],MATCH(SUMPRODUCT((tblListedesclasses[JOUR]=tblHoraires[[#Headers],[DIMANCHE]])*($B40>=tblListedesclasses[HEURE DE DÉBUT])*($B40<=tblListedesclasses[HEURE DE FIN]),tblListedesclasses[UNIQUE]),tblListedesclasses[UNIQUE],0),2),0)","v":0},{"$f":"IFERROR(INDEX(tblListedesclasses[],MATCH(SUMPRODUCT((tblListedesclasses[JOUR]=tblHoraires[[#Headers],[LUNDI]])*($B40>=tblListedesclasses[HEURE DE DÉBUT])*($B40<=tblListedesclasses[HEURE DE FIN]),tblListedesclasses[UNIQUE]),tblListedesclasses[UNIQUE],0),2),0)","v":"Maria"},{"$f":"IFERROR(INDEX(tblListedesclasses[],MATCH(SUMPRODUCT((tblListedesclasses[JOUR]=tblHoraires[[#Headers],[MARDI]])*($B40>=tblListedesclasses[HEURE DE DÉBUT])*($B40<=tblListedesclasses[HEURE DE FIN]),tblListedesclasses[UNIQUE]),tblListedesclasses[UNIQUE],0),2),0)","v":0},{"$f":"IFERROR(INDEX(tblListedesclasses[],MATCH(SUMPRODUCT((tblListedesclasses[JOUR]=tblHoraires[[#Headers],[MERCREDI]])*($B40>=tblListedesclasses[HEURE DE DÉBUT])*($B40<=tblListedesclasses[HEURE DE FIN]),tblListedesclasses[UNIQUE]),tblListedesclasses[UNIQUE],0),2),0)","v":0},{"$f":"IFERROR(INDEX(tblListedesclasses[],MATCH(SUMPRODUCT((tblListedesclasses[JOUR]=tblHoraires[[#Headers],[JEUDI]])*($B40>=tblListedesclasses[HEURE DE DÉBUT])*($B40<=tblListedesclasses[HEURE DE FIN]),tblListedesclasses[UNIQUE]),tblListedesclasses[UNIQUE],0),2),0)","v":0},{"$f":"IFERROR(INDEX(tblListedesclasses[],MATCH(SUMPRODUCT((tblListedesclasses[JOUR]=tblHoraires[[#Headers],[VENDREDI]])*($B40>=tblListedesclasses[HEURE DE DÉBUT])*($B40<=tblListedesclasses[HEURE DE FIN]),tblListedesclasses[UNIQUE]),tblListedesclasses[UNIQUE],0),2),0)","v":"Bruno"},{"$f":"IFERROR(INDEX(tblListedesclasses[],MATCH(SUMPRODUCT((tblListedesclasses[JOUR]=tblHoraires[[#Headers],[SAMEDI]])*($B40>=tblListedesclasses[HEURE DE DÉBUT])*($B40<=tblListedesclasses[HEURE DE FIN]),tblListedesclasses[UNIQUE]),tblListedesclasses[UNIQUE],0),2),0)","v":0}]
[null,"17:00:00",{"$f":"IFERROR(INDEX(tblListedesclasses[],MATCH(SUMPRODUCT((tblListedesclasses[JOUR]=tblHoraires[[#Headers],[DIMANCHE]])*($B41>=tblListedesclasses[HEURE DE DÉBUT])*($B41<=tblListedesclasses[HEURE DE FIN]),tblListedesclasses[UNIQUE]),tblListedesclasses[UNIQUE],0),2),0)","v":0},{"$f":"IFERROR(INDEX(tblListedesclasses[],MATCH(SUMPRODUCT((tblListedesclasses[JOUR]=tblHoraires[[#Headers],[LUNDI]])*($B41>=tblListedesclasses[HEURE DE DÉBUT])*($B41<=tblListedesclasses[HEURE DE FIN]),tblListedesclasses[UNIQUE]),tblListedesclasses[UNIQUE],0),2),0)","v":"Maria"},{"$f":"IFERROR(INDEX(tblListedesclasses[],MATCH(SUMPRODUCT((tblListedesclasses[JOUR]=tblHoraires[[#Headers],[MARDI]])*($B41>=tblListedesclasses[HEURE DE DÉBUT])*($B41<=tblListedesclasses[HEURE DE FIN]),tblListedesclasses[UNIQUE]),tblListedesclasses[UNIQUE],0),2),0)","v":0},{"$f":"IFERROR(INDEX(tblListedesclasses[],MATCH(SUMPRODUCT((tblListedesclasses[JOUR]=tblHoraires[[#Headers],[MERCREDI]])*($B41>=tblListedesclasses[HEURE DE DÉBUT])*($B41<=tblListedesclasses[HEURE DE FIN]),tblListedesclasses[UNIQUE]),tblListedesclasses[UNIQUE],0),2),0)","v":0},{"$f":"IFERROR(INDEX(tblListedesclasses[],MATCH(SUMPRODUCT((tblListedesclasses[JOUR]=tblHoraires[[#Headers],[JEUDI]])*($B41>=tblListedesclasses[HEURE DE DÉBUT])*($B41<=tblListedesclasses[HEURE DE FIN]),tblListedesclasses[UNIQUE]),tblListedesclasses[UNIQUE],0),2),0)","v":0},{"$f":"IFERROR(INDEX(tblListedesclasses[],MATCH(SUMPRODUCT((tblListedesclasses[JOUR]=tblHoraires[[#Headers],[VENDREDI]])*($B41>=tblListedesclasses[HEURE DE DÉBUT])*($B41<=tblListedesclasses[HEURE DE FIN]),tblListedesclasses[UNIQUE]),tblListedesclasses[UNIQUE],0),2),0)","v":"Bruno"},{"$f":"IFERROR(INDEX(tblListedesclasses[],MATCH(SUMPRODUCT((tblListedesclasses[JOUR]=tblHoraires[[#Headers],[SAMEDI]])*($B41>=tblListedesclasses[HEURE DE DÉBUT])*($B41<=tblListedesclasses[HEURE DE FIN]),tblListedesclasses[UNIQUE]),tblListedesclasses[UNIQUE],0),2),0)","v":0}]
[null,"17:15:00",{"$f":"IFERROR(INDEX(tblListedesclasses[],MATCH(SUMPRODUCT((tblListedesclasses[JOUR]=tblHoraires[[#Headers],[DIMANCHE]])*($B42>=tblListedesclasses[HEURE DE DÉBUT])*($B42<=tblListedesclasses[HEURE DE FIN]),tblListedesclasses[UNIQUE]),tblListedesclasses[UNIQUE],0),2),0)","v":0},{"$f":"IFERROR(INDEX(tblListedesclasses[],MATCH(SUMPRODUCT((tblListedesclasses[JOUR]=tblHoraires[[#Headers],[LUNDI]])*($B42>=tblListedesclasses[HEURE DE DÉBUT])*($B42<=tblListedesclasses[HEURE DE FIN]),tblListedesclasses[UNIQUE]),tblListedesclasses[UNIQUE],0),2),0)","v":0},{"$f":"IFERROR(INDEX(tblListedesclasses[],MATCH(SUMPRODUCT((tblListedesclasses[JOUR]=tblHoraires[[#Headers],[MARDI]])*($B42>=tblListedesclasses[HEURE DE DÉBUT])*($B42<=tblListedesclasses[HEURE DE FIN]),tblListedesclasses[UNIQUE]),tblListedesclasses[UNIQUE],0),2),0)","v":0},{"$f":"IFERROR(INDEX(tblListedesclasses[],MATCH(SUMPRODUCT((tblListedesclasses[JOUR]=tblHoraires[[#Headers],[MERCREDI]])*($B42>=tblListedesclasses[HEURE DE DÉBUT])*($B42<=tblListedesclasses[HEURE DE FIN]),tblListedesclasses[UNIQUE]),tblListedesclasses[UNIQUE],0),2),0)","v":0},{"$f":"IFERROR(INDEX(tblListedesclasses[],MATCH(SUMPRODUCT((tblListedesclasses[JOUR]=tblHoraires[[#Headers],[JEUDI]])*($B42>=tblListedesclasses[HEURE DE DÉBUT])*($B42<=tblListedesclasses[HEURE DE FIN]),tblListedesclasses[UNIQUE]),tblListedesclasses[UNIQUE],0),2),0)","v":0},{"$f":"IFERROR(INDEX(tblListedesclasses[],MATCH(SUMPRODUCT((tblListedesclasses[JOUR]=tblHoraires[[#Headers],[VENDREDI]])*($B42>=tblListedesclasses[HEURE DE DÉBUT])*($B42<=tblListedesclasses[HEURE DE FIN]),tblListedesclasses[UNIQUE]),tblListedesclasses[UNIQUE],0),2),0)","v":"Bruno"},{"$f":"IFERROR(INDEX(tblListedesclasses[],MATCH(SUMPRODUCT((tblListedesclasses[JOUR]=tblHoraires[[#Headers],[SAMEDI]])*($B42>=tblListedesclasses[HEURE DE DÉBUT])*($B42<=tblListedesclasses[HEURE DE FIN]),tblListedesclasses[UNIQUE]),tblListedesclasses[UNIQUE],0),2),0)","v":0}]
[null,"17:30:00",{"$f":"IFERROR(INDEX(tblListedesclasses[],MATCH(SUMPRODUCT((tblListedesclasses[JOUR]=tblHoraires[[#Headers],[DIMANCHE]])*($B43>=tblListedesclasses[HEURE DE DÉBUT])*($B43<=tblListedesclasses[HEURE DE FIN]),tblListedesclasses[UNIQUE]),tblListedesclasses[UNIQUE],0),2),0)","v":0},{"$f":"IFERROR(INDEX(tblListedesclasses[],MATCH(SUMPRODUCT((tblListedesclasses[JOUR]=tblHoraires[[#Headers],[LUNDI]])*($B43>=tblListedesclasses[HEURE DE DÉBUT])*($B43<=tblListedesclasses[HEURE DE FIN]),tblListedesclasses[UNIQUE]),tblListedesclasses[UNIQUE],0),2),0)","v":0},{"$f":"IFERROR(INDEX(tblListedesclasses[],MATCH(SUMPRODUCT((tblListedesclasses[JOUR]=tblHoraires[[#Headers],[MARDI]])*($B43>=tblListedesclasses[HEURE DE DÉBUT])*($B43<=tblListedesclasses[HEURE DE FIN]),tblListedesclasses[UNIQUE]),tblListedesclasses[UNIQUE],0),2),0)","v":0},{"$f":"IFERROR(INDEX(tblListedesclasses[],MATCH(SUMPRODUCT((tblListedesclasses[JOUR]=tblHoraires[[#Headers],[MERCREDI]])*($B43>=tblListedesclasses[HEURE DE DÉBUT])*($B43<=tblListedesclasses[HEURE DE FIN]),tblListedesclasses[UNIQUE]),tblListedesclasses[UNIQUE],0),2),0)","v":0},{"$f":"IFERROR(INDEX(tblListedesclasses[],MATCH(SUMPRODUCT((tblListedesclasses[JOUR]=tblHoraires[[#Headers],[JEUDI]])*($B43>=tblListedesclasses[HEURE DE DÉBUT])*($B43<=tblListedesclasses[HEURE DE FIN]),tblListedesclasses[UNIQUE]),tblListedesclasses[UNIQUE],0),2),0)","v":0},{"$f":"IFERROR(INDEX(tblListedesclasses[],MATCH(SUMPRODUCT((tblListedesclasses[JOUR]=tblHoraires[[#Headers],[VENDREDI]])*($B43>=tblListedesclasses[HEURE DE DÉBUT])*($B43<=tblListedesclasses[HEURE DE FIN]),tblListedesclasses[UNIQUE]),tblListedesclasses[UNIQUE],0),2),0)","v":"Bruno"},{"$f":"IFERROR(INDEX(tblListedesclasses[],MATCH(SUMPRODUCT((tblListedesclasses[JOUR]=tblHoraires[[#Headers],[SAMEDI]])*($B43>=tblListedesclasses[HEURE DE DÉBUT])*($B43<=tblListedesclasses[HEURE DE FIN]),tblListedesclasses[UNIQUE]),tblListedesclasses[UNIQUE],0),2),0)","v":0}]
[null,"17:45:00",{"$f":"IFERROR(INDEX(tblListedesclasses[],MATCH(SUMPRODUCT((tblListedesclasses[JOUR]=tblHoraires[[#Headers],[DIMANCHE]])*($B44>=tblListedesclasses[HEURE DE DÉBUT])*($B44<=tblListedesclasses[HEURE DE FIN]),tblListedesclasses[UNIQUE]),tblListedesclasses[UNIQUE],0),2),0)","v":0},{"$f":"IFERROR(INDEX(tblListedesclasses[],MATCH(SUMPRODUCT((tblListedesclasses[JOUR]=tblHoraires[[#Headers],[LUNDI]])*($B44>=tblListedesclasses[HEURE DE DÉBUT])*($B44<=tblListedesclasses[HEURE DE FIN]),tblListedesclasses[UNIQUE]),tblListedesclasses[UNIQUE],0),2),0)","v":0},{"$f":"IFERROR(INDEX(tblListedesclasses[],MATCH(SUMPRODUCT((tblListedesclasses[JOUR]=tblHoraires[[#Headers],[MARDI]])*($B44>=tblListedesclasses[HEURE DE DÉBUT])*($B44<=tblListedesclasses[HEURE DE FIN]),tblListedesclasses[UNIQUE]),tblListedesclasses[UNIQUE],0),2),0)","v":0},{"$f":"IFERROR(INDEX(tblListedesclasses[],MATCH(SUMPRODUCT((tblListedesclasses[JOUR]=tblHoraires[[#Headers],[MERCREDI]])*($B44>=tblListedesclasses[HEURE DE DÉBUT])*($B44<=tblListedesclasses[HEURE DE FIN]),tblListedesclasses[UNIQUE]),tblListedesclasses[UNIQUE],0),2),0)","v":0},{"$f":"IFERROR(INDEX(tblListedesclasses[],MATCH(SUMPRODUCT((tblListedesclasses[JOUR]=tblHoraires[[#Headers],[JEUDI]])*($B44>=tblListedesclasses[HEURE DE DÉBUT])*($B44<=tblListedesclasses[HEURE DE FIN]),tblListedesclasses[UNIQUE]),tblListedesclasses[UNIQUE],0),2),0)","v":0},{"$f":"IFERROR(INDEX(tblListedesclasses[],MATCH(SUMPRODUCT((tblListedesclasses[JOUR]=tblHoraires[[#Headers],[VENDREDI]])*($B44>=tblListedesclasses[HEURE DE DÉBUT])*($B44<=tblListedesclasses[HEURE DE FIN]),tblListedesclasses[UNIQUE]),tblListedesclasses[UNIQUE],0),2),0)","v":0},{"$f":"IFERROR(INDEX(tblListedesclasses[],MATCH(SUMPRODUCT((tblListedesclasses[JOUR]=tblHoraires[[#Headers],[SAMEDI]])*($B44>=tblListedesclasses[HEURE DE DÉBUT])*($B44<=tblListedesclasses[HEURE DE FIN]),tblListedesclasses[UNIQUE]),tblListedesclasses[UNIQUE],0),2),0)","v":0}]
[null,"18:00:00",{"$f":"IFERROR(INDEX(tblListedesclasses[],MATCH(SUMPRODUCT((tblListedesclasses[JOUR]=tblHoraires[[#Headers],[DIMANCHE]])*($B45>=tblListedesclasses[HEURE DE DÉBUT])*($B45<=tblListedesclasses[HEURE DE FIN]),tblListedesclasses[UNIQUE]),tblListedesclasses[UNIQUE],0),2),0)","v":0},{"$f":"IFERROR(INDEX(tblListedesclasses[],MATCH(SUMPRODUCT((tblListedesclasses[JOUR]=tblHoraires[[#Headers],[LUNDI]])*($B45>=tblListedesclasses[HEURE DE DÉBUT])*($B45<=tblListedesclasses[HEURE DE FIN]),tblListedesclasses[UNIQUE]),tblListedesclasses[UNIQUE],0),2),0)","v":0},{"$f":"IFERROR(INDEX(tblListedesclasses[],MATCH(SUMPRODUCT((tblListedesclasses[JOUR]=tblHoraires[[#Headers],[MARDI]])*($B45>=tblListedesclasses[HEURE DE DÉBUT])*($B45<=tblListedesclasses[HEURE DE FIN]),tblListedesclasses[UNIQUE]),tblListedesclasses[UNIQUE],0),2),0)","v":0},{"$f":"IFERROR(INDEX(tblListedesclasses[],MATCH(SUMPRODUCT((tblListedesclasses[JOUR]=tblHoraires[[#Headers],[MERCREDI]])*($B45>=tblListedesclasses[HEURE DE DÉBUT])*($B45<=tblListedesclasses[HEURE DE FIN]),tblListedesclasses[UNIQUE]),tblListedesclasses[UNIQUE],0),2),0)","v":0},{"$f":"IFERROR(INDEX(tblListedesclasses[],MATCH(SUMPRODUCT((tblListedesclasses[JOUR]=tblHoraires[[#Headers],[JEUDI]])*($B45>=tblListedesclasses[HEURE DE DÉBUT])*($B45<=tblListedesclasses[HEURE DE FIN]),tblListedesclasses[UNIQUE]),tblListedesclasses[UNIQUE],0),2),0)","v":0},{"$f":"IFERROR(INDEX(tblListedesclasses[],MATCH(SUMPRODUCT((tblListedesclasses[JOUR]=tblHoraires[[#Headers],[VENDREDI]])*($B45>=tblListedesclasses[HEURE DE DÉBUT])*($B45<=tblListedesclasses[HEURE DE FIN]),tblListedesclasses[UNIQUE]),tblListedesclasses[UNIQUE],0),2),0)","v":0},{"$f":"IFERROR(INDEX(tblListedesclasses[],MATCH(SUMPRODUCT((tblListedesclasses[JOUR]=tblHoraires[[#Headers],[SAMEDI]])*($B45>=tblListedesclasses[HEURE DE DÉBUT])*($B45<=tblListedesclasses[HEURE DE FIN]),tblListedesclasses[UNIQUE]),tblListedesclasses[UNIQUE],0),2),0)","v":0}]
[null,"18:15:00",{"$f":"IFERROR(INDEX(tblListedesclasses[],MATCH(SUMPRODUCT((tblListedesclasses[JOUR]=tblHoraires[[#Headers],[DIMANCHE]])*($B46>=tblListedesclasses[HEURE DE DÉBUT])*($B46<=tblListedesclasses[HEURE DE FIN]),tblListedesclasses[UNIQUE]),tblListedesclasses[UNIQUE],0),2),0)","v":0},{"$f":"IFERROR(INDEX(tblListedesclasses[],MATCH(SUMPRODUCT((tblListedesclasses[JOUR]=tblHoraires[[#Headers],[LUNDI]])*($B46>=tblListedesclasses[HEURE DE DÉBUT])*($B46<=tblListedesclasses[HEURE DE FIN]),tblListedesclasses[UNIQUE]),tblListedesclasses[UNIQUE],0),2),0)","v":0},{"$f":"IFERROR(INDEX(tblListedesclasses[],MATCH(SUMPRODUCT((tblListedesclasses[JOUR]=tblHoraires[[#Headers],[MARDI]])*($B46>=tblListedesclasses[HEURE DE DÉBUT])*($B46<=tblListedesclasses[HEURE DE FIN]),tblListedesclasses[UNIQUE]),tblListedesclasses[UNIQUE],0),2),0)","v":0},{"$f":"IFERROR(INDEX(tblListedesclasses[],MATCH(SUMPRODUCT((tblListedesclasses[JOUR]=tblHoraires[[#Headers],[MERCREDI]])*($B46>=tblListedesclasses[HEURE DE DÉBUT])*($B46<=tblListedesclasses[HEURE DE FIN]),tblListedesclasses[UNIQUE]),tblListedesclasses[UNIQUE],0),2),0)","v":0},{"$f":"IFERROR(INDEX(tblListedesclasses[],MATCH(SUMPRODUCT((tblListedesclasses[JOUR]=tblHoraires[[#Headers],[JEUDI]])*($B46>=tblListedesclasses[HEURE DE DÉBUT])*($B46<=tblListedesclasses[HEURE DE FIN]),tblListedesclasses[UNIQUE]),tblListedesclasses[UNIQUE],0),2),0)","v":0},{"$f":"IFERROR(INDEX(tblListedesclasses[],MATCH(SUMPRODUCT((tblListedesclasses[JOUR]=tblHoraires[[#Headers],[VENDREDI]])*($B46>=tblListedesclasses[HEURE DE DÉBUT])*($B46<=tblListedesclasses[HEURE DE FIN]),tblListedesclasses[UNIQUE]),tblListedesclasses[UNIQUE],0),2),0)","v":0},{"$f":"IFERROR(INDEX(tblListedesclasses[],MATCH(SUMPRODUCT((tblListedesclasses[JOUR]=tblHoraires[[#Headers],[SAMEDI]])*($B46>=tblListedesclasses[HEURE DE DÉBUT])*($B46<=tblListedesclasses[HEURE DE FIN]),tblListedesclasses[UNIQUE]),tblListedesclasses[UNIQUE],0),2),0)","v":0}]
[null,"18:30:00",{"$f":"IFERROR(INDEX(tblListedesclasses[],MATCH(SUMPRODUCT((tblListedesclasses[JOUR]=tblHoraires[[#Headers],[DIMANCHE]])*($B47>=tblListedesclasses[HEURE DE DÉBUT])*($B47<=tblListedesclasses[HEURE DE FIN]),tblListedesclasses[UNIQUE]),tblListedesclasses[UNIQUE],0),2),0)","v":0},{"$f":"IFERROR(INDEX(tblListedesclasses[],MATCH(SUMPRODUCT((tblListedesclasses[JOUR]=tblHoraires[[#Headers],[LUNDI]])*($B47>=tblListedesclasses[HEURE DE DÉBUT])*($B47<=tblListedesclasses[HEURE DE FIN]),tblListedesclasses[UNIQUE]),tblListedesclasses[UNIQUE],0),2),0)","v":0},{"$f":"IFERROR(INDEX(tblListedesclasses[],MATCH(SUMPRODUCT((tblListedesclasses[JOUR]=tblHoraires[[#Headers],[MARDI]])*($B47>=tblListedesclasses[HEURE DE DÉBUT])*($B47<=tblListedesclasses[HEURE DE FIN]),tblListedesclasses[UNIQUE]),tblListedesclasses[UNIQUE],0),2),0)","v":0},{"$f":"IFERROR(INDEX(tblListedesclasses[],MATCH(SUMPRODUCT((tblListedesclasses[JOUR]=tblHoraires[[#Headers],[MERCREDI]])*($B47>=tblListedesclasses[HEURE DE DÉBUT])*($B47<=tblListedesclasses[HEURE DE FIN]),tblListedesclasses[UNIQUE]),tblListedesclasses[UNIQUE],0),2),0)","v":0},{"$f":"IFERROR(INDEX(tblListedesclasses[],MATCH(SUMPRODUCT((tblListedesclasses[JOUR]=tblHoraires[[#Headers],[JEUDI]])*($B47>=tblListedesclasses[HEURE DE DÉBUT])*($B47<=tblListedesclasses[HEURE DE FIN]),tblListedesclasses[UNIQUE]),tblListedesclasses[UNIQUE],0),2),0)","v":0},{"$f":"IFERROR(INDEX(tblListedesclasses[],MATCH(SUMPRODUCT((tblListedesclasses[JOUR]=tblHoraires[[#Headers],[VENDREDI]])*($B47>=tblListedesclasses[HEURE DE DÉBUT])*($B47<=tblListedesclasses[HEURE DE FIN]),tblListedesclasses[UNIQUE]),tblListedesclasses[UNIQUE],0),2),0)","v":0},{"$f":"IFERROR(INDEX(tblListedesclasses[],MATCH(SUMPRODUCT((tblListedesclasses[JOUR]=tblHoraires[[#Headers],[SAMEDI]])*($B47>=tblListedesclasses[HEURE DE DÉBUT])*($B47<=tblListedesclasses[HEURE DE FIN]),tblListedesclasses[UNIQUE]),tblListedesclasses[UNIQUE],0),2),0)","v":0}]
[null,"18:45:00",{"$f":"IFERROR(INDEX(tblListedesclasses[],MATCH(SUMPRODUCT((tblListedesclasses[JOUR]=tblHoraires[[#Headers],[DIMANCHE]])*($B48>=tblListedesclasses[HEURE DE DÉBUT])*($B48<=tblListedesclasses[HEURE DE FIN]),tblListedesclasses[UNIQUE]),tblListedesclasses[UNIQUE],0),2),0)","v":0},{"$f":"IFERROR(INDEX(tblListedesclasses[],MATCH(SUMPRODUCT((tblListedesclasses[JOUR]=tblHoraires[[#Headers],[LUNDI]])*($B48>=tblListedesclasses[HEURE DE DÉBUT])*($B48<=tblListedesclasses[HEURE DE FIN]),tblListedesclasses[UNIQUE]),tblListedesclasses[UNIQUE],0),2),0)","v":0},{"$f":"IFERROR(INDEX(tblListedesclasses[],MATCH(SUMPRODUCT((tblListedesclasses[JOUR]=tblHoraires[[#Headers],[MARDI]])*($B48>=tblListedesclasses[HEURE DE DÉBUT])*($B48<=tblListedesclasses[HEURE DE FIN]),tblListedesclasses[UNIQUE]),tblListedesclasses[UNIQUE],0),2),0)","v":0},{"$f":"IFERROR(INDEX(tblListedesclasses[],MATCH(SUMPRODUCT((tblListedesclasses[JOUR]=tblHoraires[[#Headers],[MERCREDI]])*($B48>=tblListedesclasses[HEURE DE DÉBUT])*($B48<=tblListedesclasses[HEURE DE FIN]),tblListedesclasses[UNIQUE]),tblListedesclasses[UNIQUE],0),2),0)","v":0},{"$f":"IFERROR(INDEX(tblListedesclasses[],MATCH(SUMPRODUCT((tblListedesclasses[JOUR]=tblHoraires[[#Headers],[JEUDI]])*($B48>=tblListedesclasses[HEURE DE DÉBUT])*($B48<=tblListedesclasses[HEURE DE FIN]),tblListedesclasses[UNIQUE]),tblListedesclasses[UNIQUE],0),2),0)","v":0},{"$f":"IFERROR(INDEX(tblListedesclasses[],MATCH(SUMPRODUCT((tblListedesclasses[JOUR]=tblHoraires[[#Headers],[VENDREDI]])*($B48>=tblListedesclasses[HEURE DE DÉBUT])*($B48<=tblListedesclasses[HEURE DE FIN]),tblListedesclasses[UNIQUE]),tblListedesclasses[UNIQUE],0),2),0)","v":0},{"$f":"IFERROR(INDEX(tblListedesclasses[],MATCH(SUMPRODUCT((tblListedesclasses[JOUR]=tblHoraires[[#Headers],[SAMEDI]])*($B48>=tblListedesclasses[HEURE DE DÉBUT])*($B48<=tblListedesclasses[HEURE DE FIN]),tblListedesclasses[UNIQUE]),tblListedesclasses[UNIQUE],0),2),0)","v":0}]
[null,"19:00:00",{"$f":"IFERROR(INDEX(tblListedesclasses[],MATCH(SUMPRODUCT((tblListedesclasses[JOUR]=tblHoraires[[#Headers],[DIMANCHE]])*($B49>=tblListedesclasses[HEURE DE DÉBUT])*($B49<=tblListedesclasses[HEURE DE FIN]),tblListedesclasses[UNIQUE]),tblListedesclasses[UNIQUE],0),2),0)","v":0},{"$f":"IFERROR(INDEX(tblListedesclasses[],MATCH(SUMPRODUCT((tblListedesclasses[JOUR]=tblHoraires[[#Headers],[LUNDI]])*($B49>=tblListedesclasses[HEURE DE DÉBUT])*($B49<=tblListedesclasses[HEURE DE FIN]),tblListedesclasses[UNIQUE]),tblListedesclasses[UNIQUE],0),2),0)","v":0},{"$f":"IFERROR(INDEX(tblListedesclasses[],MATCH(SUMPRODUCT((tblListedesclasses[JOUR]=tblHoraires[[#Headers],[MARDI]])*($B49>=tblListedesclasses[HEURE DE DÉBUT])*($B49<=tblListedesclasses[HEURE DE FIN]),tblListedesclasses[UNIQUE]),tblListedesclasses[UNIQUE],0),2),0)","v":0},{"$f":"IFERROR(INDEX(tblListedesclasses[],MATCH(SUMPRODUCT((tblListedesclasses[JOUR]=tblHoraires[[#Headers],[MERCREDI]])*($B49>=tblListedesclasses[HEURE DE DÉBUT])*($B49<=tblListedesclasses[HEURE DE FIN]),tblListedesclasses[UNIQUE]),tblListedesclasses[UNIQUE],0),2),0)","v":0},{"$f":"IFERROR(INDEX(tblListedesclasses[],MATCH(SUMPRODUCT((tblListedesclasses[JOUR]=tblHoraires[[#Headers],[JEUDI]])*($B49>=tblListedesclasses[HEURE DE DÉBUT])*($B49<=tblListedesclasses[HEURE DE FIN]),tblListedesclasses[UNIQUE]),tblListedesclasses[UNIQUE],0),2),0)","v":0},{"$f":"IFERROR(INDEX(tblListedesclasses[],MATCH(SUMPRODUCT((tblListedesclasses[JOUR]=tblHoraires[[#Headers],[VENDREDI]])*($B49>=tblListedesclasses[HEURE DE DÉBUT])*($B49<=tblListedesclasses[HEURE DE FIN]),tblListedesclasses[UNIQUE]),tblListedesclasses[UNIQUE],0),2),0)","v":0},{"$f":"IFERROR(INDEX(tblListedesclasses[],MATCH(SUMPRODUCT((tblListedesclasses[JOUR]=tblHoraires[[#Headers],[SAMEDI]])*($B49>=tblListedesclasses[HEURE DE DÉBUT])*($B49<=tblListedesclasses[HEURE DE FIN]),tblListedesclasses[UNIQUE]),tblListedesclasses[UNIQUE],0),2),0)","v":0}]
[null,"19:15:00",{"$f":"IFERROR(INDEX(tblListedesclasses[],MATCH(SUMPRODUCT((tblListedesclasses[JOUR]=tblHoraires[[#Headers],[DIMANCHE]])*($B50>=tblListedesclasses[HEURE DE DÉBUT])*($B50<=tblListedesclasses[HEURE DE FIN]),tblListedesclasses[UNIQUE]),tblListedesclasses[UNIQUE],0),2),0)","v":"Moi"},{"$f":"IFERROR(INDEX(tblListedesclasses[],MATCH(SUMPRODUCT((tblListedesclasses[JOUR]=tblHoraires[[#Headers],[LUNDI]])*($B50>=tblListedesclasses[HEURE DE DÉBUT])*($B50<=tblListedesclasses[HEURE DE FIN]),tblListedesclasses[UNIQUE]),tblListedesclasses[UNIQUE],0),2),0)","v":0},{"$f":"IFERROR(INDEX(tblListedesclasses[],MATCH(SUMPRODUCT((tblListedesclasses[JOUR]=tblHoraires[[#Headers],[MARDI]])*($B50>=tblListedesclasses[HEURE DE DÉBUT])*($B50<=tblListedesclasses[HEURE DE FIN]),tblListedesclasses[UNIQUE]),tblListedesclasses[UNIQUE],0),2),0)","v":0},{"$f":"IFERROR(INDEX(tblListedesclasses[],MATCH(SUMPRODUCT((tblListedesclasses[JOUR]=tblHoraires[[#Headers],[MERCREDI]])*($B50>=tblListedesclasses[HEURE DE DÉBUT])*($B50<=tblListedesclasses[HEURE DE FIN]),tblListedesclasses[UNIQUE]),tblListedesclasses[UNIQUE],0),2),0)","v":0},{"$f":"IFERROR(INDEX(tblListedesclasses[],MATCH(SUMPRODUCT((tblListedesclasses[JOUR]=tblHoraires[[#Headers],[JEUDI]])*($B50>=tblListedesclasses[HEURE DE DÉBUT])*($B50<=tblListedesclasses[HEURE DE FIN]),tblListedesclasses[UNIQUE]),tblListedesclasses[UNIQUE],0),2),0)","v":0},{"$f":"IFERROR(INDEX(tblListedesclasses[],MATCH(SUMPRODUCT((tblListedesclasses[JOUR]=tblHoraires[[#Headers],[VENDREDI]])*($B50>=tblListedesclasses[HEURE DE DÉBUT])*($B50<=tblListedesclasses[HEURE DE FIN]),tblListedesclasses[UNIQUE]),tblListedesclasses[UNIQUE],0),2),0)","v":0},{"$f":"IFERROR(INDEX(tblListedesclasses[],MATCH(SUMPRODUCT((tblListedesclasses[JOUR]=tblHoraires[[#Headers],[SAMEDI]])*($B50>=tblListedesclasses[HEURE DE DÉBUT])*($B50<=tblListedesclasses[HEURE DE FIN]),tblListedesclasses[UNIQUE]),tblListedesclasses[UNIQUE],0),2),0)","v":0}]
[null,"19:30:00",{"$f":"IFERROR(INDEX(tblListedesclasses[],MATCH(SUMPRODUCT((tblListedesclasses[JOUR]=tblHoraires[[#Headers],[DIMANCHE]])*($B51>=tblListedesclasses[HEURE DE DÉBUT])*($B51<=tblListedesclasses[HEURE DE FIN]),tblListedesclasses[UNIQUE]),tblListedesclasses[UNIQUE],0),2),0)","v":"Moi"},{"$f":"IFERROR(INDEX(tblListedesclasses[],MATCH(SUMPRODUCT((tblListedesclasses[JOUR]=tblHoraires[[#Headers],[LUNDI]])*($B51>=tblListedesclasses[HEURE DE DÉBUT])*($B51<=tblListedesclasses[HEURE DE FIN]),tblListedesclasses[UNIQUE]),tblListedesclasses[UNIQUE],0),2),0)","v":0},{"$f":"IFERROR(INDEX(tblListedesclasses[],MATCH(SUMPRODUCT((tblListedesclasses[JOUR]=tblHoraires[[#Headers],[MARDI]])*($B51>=tblListedesclasses[HEURE DE DÉBUT])*($B51<=tblListedesclasses[HEURE DE FIN]),tblListedesclasses[UNIQUE]),tblListedesclasses[UNIQUE],0),2),0)","v":0},{"$f":"IFERROR(INDEX(tblListedesclasses[],MATCH(SUMPRODUCT((tblListedesclasses[JOUR]=tblHoraires[[#Headers],[MERCREDI]])*($B51>=tblListedesclasses[HEURE DE DÉBUT])*($B51<=tblListedesclasses[HEURE DE FIN]),tblListedesclasses[UNIQUE]),tblListedesclasses[UNIQUE],0),2),0)","v":0},{"$f":"IFERROR(INDEX(tblListedesclasses[],MATCH(SUMPRODUCT((tblListedesclasses[JOUR]=tblHoraires[[#Headers],[JEUDI]])*($B51>=tblListedesclasses[HEURE DE DÉBUT])*($B51<=tblListedesclasses[HEURE DE FIN]),tblListedesclasses[UNIQUE]),tblListedesclasses[UNIQUE],0),2),0)","v":0},{"$f":"IFERROR(INDEX(tblListedesclasses[],MATCH(SUMPRODUCT((tblListedesclasses[JOUR]=tblHoraires[[#Headers],[VENDREDI]])*($B51>=tblListedesclasses[HEURE DE DÉBUT])*($B51<=tblListedesclasses[HEURE DE FIN]),tblListedesclasses[UNIQUE]),tblListedesclasses[UNIQUE],0),2),0)","v":0},{"$f":"IFERROR(INDEX(tblListedesclasses[],MATCH(SUMPRODUCT((tblListedesclasses[JOUR]=tblHoraires[[#Headers],[SAMEDI]])*($B51>=tblListedesclasses[HEURE DE DÉBUT])*($B51<=tblListedesclasses[HEURE DE FIN]),tblListedesclasses[UNIQUE]),tblListedesclasses[UNIQUE],0),2),0)","v":0}]
[null,"19:45:00",{"$f":"IFERROR(INDEX(tblListedesclasses[],MATCH(SUMPRODUCT((tblListedesclasses[JOUR]=tblHoraires[[#Headers],[DIMANCHE]])*($B52>=tblListedesclasses[HEURE DE DÉBUT])*($B52<=tblListedesclasses[HEURE DE FIN]),tblListedesclasses[UNIQUE]),tblListedesclasses[UNIQUE],0),2),0)","v":"Moi"},{"$f":"IFERROR(INDEX(tblListedesclasses[],MATCH(SUMPRODUCT((tblListedesclasses[JOUR]=tblHoraires[[#Headers],[LUNDI]])*($B52>=tblListedesclasses[HEURE DE DÉBUT])*($B52<=tblListedesclasses[HEURE DE FIN]),tblListedesclasses[UNIQUE]),tblListedesclasses[UNIQUE],0),2),0)","v":0},{"$f":"IFERROR(INDEX(tblListedesclasses[],MATCH(SUMPRODUCT((tblListedesclasses[JOUR]=tblHoraires[[#Headers],[MARDI]])*($B52>=tblListedesclasses[HEURE DE DÉBUT])*($B52<=tblListedesclasses[HEURE DE FIN]),tblListedesclasses[UNIQUE]),tblListedesclasses[UNIQUE],0),2),0)","v":0},{"$f":"IFERROR(INDEX(tblListedesclasses[],MATCH(SUMPRODUCT((tblListedesclasses[JOUR]=tblHoraires[[#Headers],[MERCREDI]])*($B52>=tblListedesclasses[HEURE DE DÉBUT])*($B52<=tblListedesclasses[HEURE DE FIN]),tblListedesclasses[UNIQUE]),tblListedesclasses[UNIQUE],0),2),0)","v":0},{"$f":"IFERROR(INDEX(tblListedesclasses[],MATCH(SUMPRODUCT((tblListedesclasses[JOUR]=tblHoraires[[#Headers],[JEUDI]])*($B52>=tblListedesclasses[HEURE DE DÉBUT])*($B52<=tblListedesclasses[HEURE DE FIN]),tblListedesclasses[UNIQUE]),tblListedesclasses[UNIQUE],0),2),0)","v":0},{"$f":"IFERROR(INDEX(tblListedesclasses[],MATCH(SUMPRODUCT((tblListedesclasses[JOUR]=tblHoraires[[#Headers],[VENDREDI]])*($B52>=tblListedesclasses[HEURE DE DÉBUT])*($B52<=tblListedesclasses[HEURE DE FIN]),tblListedesclasses[UNIQUE]),tblListedesclasses[UNIQUE],0),2),0)","v":0},{"$f":"IFERROR(INDEX(tblListedesclasses[],MATCH(SUMPRODUCT((tblListedesclasses[JOUR]=tblHoraires[[#Headers],[SAMEDI]])*($B52>=tblListedesclasses[HEURE DE DÉBUT])*($B52<=tblListedesclasses[HEURE DE FIN]),tblListedesclasses[UNIQUE]),tblListedesclasses[UNIQUE],0),2),0)","v":0}]
[null,"20:00:00",{"$f":"IFERROR(INDEX(tblListedesclasses[],MATCH(SUMPRODUCT((tblListedesclasses[JOUR]=tblHoraires[[#Headers],[DIMANCHE]])*($B53>=tblListedesclasses[HEURE DE DÉBUT])*($B53<=tblListedesclasses[HEURE DE FIN]),tblListedesclasses[UNIQUE]),tblListedesclasses[UNIQUE],0),2),0)","v":"Moi"},{"$f":"IFERROR(INDEX(tblListedesclasses[],MATCH(SUMPRODUCT((tblListedesclasses[JOUR]=tblHoraires[[#Headers],[LUNDI]])*($B53>=tblListedesclasses[HEURE DE DÉBUT])*($B53<=tblListedesclasses[HEURE DE FIN]),tblListedesclasses[UNIQUE]),tblListedesclasses[UNIQUE],0),2),0)","v":0},{"$f":"IFERROR(INDEX(tblListedesclasses[],MATCH(SUMPRODUCT((tblListedesclasses[JOUR]=tblHoraires[[#Headers],[MARDI]])*($B53>=tblListedesclasses[HEURE DE DÉBUT])*($B53<=tblListedesclasses[HEURE DE FIN]),tblListedesclasses[UNIQUE]),tblListedesclasses[UNIQUE],0),2),0)","v":0},{"$f":"IFERROR(INDEX(tblListedesclasses[],MATCH(SUMPRODUCT((tblListedesclasses[JOUR]=tblHoraires[[#Headers],[MERCREDI]])*($B53>=tblListedesclasses[HEURE DE DÉBUT])*($B53<=tblListedesclasses[HEURE DE FIN]),tblListedesclasses[UNIQUE]),tblListedesclasses[UNIQUE],0),2),0)","v":0},{"$f":"IFERROR(INDEX(tblListedesclasses[],MATCH(SUMPRODUCT((tblListedesclasses[JOUR]=tblHoraires[[#Headers],[JEUDI]])*($B53>=tblListedesclasses[HEURE DE DÉBUT])*($B53<=tblListedesclasses[HEURE DE FIN]),tblListedesclasses[UNIQUE]),tblListedesclasses[UNIQUE],0),2),0)","v":0},{"$f":"IFERROR(INDEX(tblListedesclasses[],MATCH(SUMPRODUCT((tblListedesclasses[JOUR]=tblHoraires[[#Headers],[VENDREDI]])*($B53>=tblListedesclasses[HEURE DE DÉBUT])*($B53<=tblListedesclasses[HEURE DE FIN]),tblListedesclasses[UNIQUE]),tblListedesclasses[UNIQUE],0),2),0)","v":0},{"$f":"IFERROR(INDEX(tblListedesclasses[],MATCH(SUMPRODUCT((tblListedesclasses[JOUR]=tblHoraires[[#Headers],[SAMEDI]])*($B53>=tblListedesclasses[HEURE DE DÉBUT])*($B53<=tblListedesclasses[HEURE DE FIN]),tblListedesclasses[UNIQUE]),tblListedesclasses[UNIQUE],0),2),0)","v":0}]
[null,"20:15:00",{"$f":"IFERROR(INDEX(tblListedesclasses[],MATCH(SUMPRODUCT((tblListedesclasses[JOUR]=tblHoraires[[#Headers],[DIMANCHE]])*($B54>=tblListedesclasses[HEURE DE DÉBUT])*($B54<=tblListedesclasses[HEURE DE FIN]),tblListedesclasses[UNIQUE]),tblListedesclasses[UNIQUE],0),2),0)","v":0},{"$f":"IFERROR(INDEX(tblListedesclasses[],MATCH(SUMPRODUCT((tblListedesclasses[JOUR]=tblHoraires[[#Headers],[LUNDI]])*($B54>=tblListedesclasses[HEURE DE DÉBUT])*($B54<=tblListedesclasses[HEURE DE FIN]),tblListedesclasses[UNIQUE]),tblListedesclasses[UNIQUE],0),2),0)","v":0},{"$f":"IFERROR(INDEX(tblListedesclasses[],MATCH(SUMPRODUCT((tblListedesclasses[JOUR]=tblHoraires[[#Headers],[MARDI]])*($B54>=tblListedesclasses[HEURE DE DÉBUT])*($B54<=tblListedesclasses[HEURE DE FIN]),tblListedesclasses[UNIQUE]),tblListedesclasses[UNIQUE],0),2),0)","v":0},{"$f":"IFERROR(INDEX(tblListedesclasses[],MATCH(SUMPRODUCT((tblListedesclasses[JOUR]=tblHoraires[[#Headers],[MERCREDI]])*($B54>=tblListedesclasses[HEURE DE DÉBUT])*($B54<=tblListedesclasses[HEURE DE FIN]),tblListedesclasses[UNIQUE]),tblListedesclasses[UNIQUE],0),2),0)","v":0},{"$f":"IFERROR(INDEX(tblListedesclasses[],MATCH(SUMPRODUCT((tblListedesclasses[JOUR]=tblHoraires[[#Headers],[JEUDI]])*($B54>=tblListedesclasses[HEURE DE DÉBUT])*($B54<=tblListedesclasses[HEURE DE FIN]),tblListedesclasses[UNIQUE]),tblListedesclasses[UNIQUE],0),2),0)","v":0},{"$f":"IFERROR(INDEX(tblListedesclasses[],MATCH(SUMPRODUCT((tblListedesclasses[JOUR]=tblHoraires[[#Headers],[VENDREDI]])*($B54>=tblListedesclasses[HEURE DE DÉBUT])*($B54<=tblListedesclasses[HEURE DE FIN]),tblListedesclasses[UNIQUE]),tblListedesclasses[UNIQUE],0),2),0)","v":0},{"$f":"IFERROR(INDEX(tblListedesclasses[],MATCH(SUMPRODUCT((tblListedesclasses[JOUR]=tblHoraires[[#Headers],[SAMEDI]])*($B54>=tblListedesclasses[HEURE DE DÉBUT])*($B54<=tblListedesclasses[HEURE DE FIN]),tblListedesclasses[UNIQUE]),tblListedesclasses[UNIQUE],0),2),0)","v":0}]
[null,"20:30:00",{"$f":"IFERROR(INDEX(tblListedesclasses[],MATCH(SUMPRODUCT((tblListedesclasses[JOUR]=tblHoraires[[#Headers],[DIMANCHE]])*($B55>=tblListedesclasses[HEURE DE DÉBUT])*($B55<=tblListedesclasses[HEURE DE FIN]),tblListedesclasses[UNIQUE]),tblListedesclasses[UNIQUE],0),2),0)","v":0},{"$f":"IFERROR(INDEX(tblListedesclasses[],MATCH(SUMPRODUCT((tblListedesclasses[JOUR]=tblHoraires[[#Headers],[LUNDI]])*($B55>=tblListedesclasses[HEURE DE DÉBUT])*($B55<=tblListedesclasses[HEURE DE FIN]),tblListedesclasses[UNIQUE]),tblListedesclasses[UNIQUE],0),2),0)","v":0},{"$f":"IFERROR(INDEX(tblListedesclasses[],MATCH(SUMPRODUCT((tblListedesclasses[JOUR]=tblHoraires[[#Headers],[MARDI]])*($B55>=tblListedesclasses[HEURE DE DÉBUT])*($B55<=tblListedesclasses[HEURE DE FIN]),tblListedesclasses[UNIQUE]),tblListedesclasses[UNIQUE],0),2),0)","v":0},{"$f":"IFERROR(INDEX(tblListedesclasses[],MATCH(SUMPRODUCT((tblListedesclasses[JOUR]=tblHoraires[[#Headers],[MERCREDI]])*($B55>=tblListedesclasses[HEURE DE DÉBUT])*($B55<=tblListedesclasses[HEURE DE FIN]),tblListedesclasses[UNIQUE]),tblListedesclasses[UNIQUE],0),2),0)","v":0},{"$f":"IFERROR(INDEX(tblListedesclasses[],MATCH(SUMPRODUCT((tblListedesclasses[JOUR]=tblHoraires[[#Headers],[JEUDI]])*($B55>=tblListedesclasses[HEURE DE DÉBUT])*($B55<=tblListedesclasses[HEURE DE FIN]),tblListedesclasses[UNIQUE]),tblListedesclasses[UNIQUE],0),2),0)","v":0},{"$f":"IFERROR(INDEX(tblListedesclasses[],MATCH(SUMPRODUCT((tblListedesclasses[JOUR]=tblHoraires[[#Headers],[VENDREDI]])*($B55>=tblListedesclasses[HEURE DE DÉBUT])*($B55<=tblListedesclasses[HEURE DE FIN]),tblListedesclasses[UNIQUE]),tblListedesclasses[UNIQUE],0),2),0)","v":0},{"$f":"IFERROR(INDEX(tblListedesclasses[],MATCH(SUMPRODUCT((tblListedesclasses[JOUR]=tblHoraires[[#Headers],[SAMEDI]])*($B55>=tblListedesclasses[HEURE DE DÉBUT])*($B55<=tblListedesclasses[HEURE DE FIN]),tblListedesclasses[UNIQUE]),tblListedesclasses[UNIQUE],0),2),0)","v":0}]
[null,"20:45:00",{"$f":"IFERROR(INDEX(tblListedesclasses[],MATCH(SUMPRODUCT((tblListedesclasses[JOUR]=tblHoraires[[#Headers],[DIMANCHE]])*($B56>=tblListedesclasses[HEURE DE DÉBUT])*($B56<=tblListedesclasses[HEURE DE FIN]),tblListedesclasses[UNIQUE]),tblListedesclasses[UNIQUE],0),2),0)","v":0},{"$f":"IFERROR(INDEX(tblListedesclasses[],MATCH(SUMPRODUCT((tblListedesclasses[JOUR]=tblHoraires[[#Headers],[LUNDI]])*($B56>=tblListedesclasses[HEURE DE DÉBUT])*($B56<=tblListedesclasses[HEURE DE FIN]),tblListedesclasses[UNIQUE]),tblListedesclasses[UNIQUE],0),2),0)","v":0},{"$f":"IFERROR(INDEX(tblListedesclasses[],MATCH(SUMPRODUCT((tblListedesclasses[JOUR]=tblHoraires[[#Headers],[MARDI]])*($B56>=tblListedesclasses[HEURE DE DÉBUT])*($B56<=tblListedesclasses[HEURE DE FIN]),tblListedesclasses[UNIQUE]),tblListedesclasses[UNIQUE],0),2),0)","v":0},{"$f":"IFERROR(INDEX(tblListedesclasses[],MATCH(SUMPRODUCT((tblListedesclasses[JOUR]=tblHoraires[[#Headers],[MERCREDI]])*($B56>=tblListedesclasses[HEURE DE DÉBUT])*($B56<=tblListedesclasses[HEURE DE FIN]),tblListedesclasses[UNIQUE]),tblListedesclasses[UNIQUE],0),2),0)","v":0},{"$f":"IFERROR(INDEX(tblListedesclasses[],MATCH(SUMPRODUCT((tblListedesclasses[JOUR]=tblHoraires[[#Headers],[JEUDI]])*($B56>=tblListedesclasses[HEURE DE DÉBUT])*($B56<=tblListedesclasses[HEURE DE FIN]),tblListedesclasses[UNIQUE]),tblListedesclasses[UNIQUE],0),2),0)","v":0},{"$f":"IFERROR(INDEX(tblListedesclasses[],MATCH(SUMPRODUCT((tblListedesclasses[JOUR]=tblHoraires[[#Headers],[VENDREDI]])*($B56>=tblListedesclasses[HEURE DE DÉBUT])*($B56<=tblListedesclasses[HEURE DE FIN]),tblListedesclasses[UNIQUE]),tblListedesclasses[UNIQUE],0),2),0)","v":0},{"$f":"IFERROR(INDEX(tblListedesclasses[],MATCH(SUMPRODUCT((tblListedesclasses[JOUR]=tblHoraires[[#Headers],[SAMEDI]])*($B56>=tblListedesclasses[HEURE DE DÉBUT])*($B56<=tblListedesclasses[HEURE DE FIN]),tblListedesclasses[UNIQUE]),tblListedesclasses[UNIQUE],0),2),0)","v":0}]
[null,"21:00:00",{"$f":"IFERROR(INDEX(tblListedesclasses[],MATCH(SUMPRODUCT((tblListedesclasses[JOUR]=tblHoraires[[#Headers],[DIMANCHE]])*($B57>=tblListedesclasses[HEURE DE DÉBUT])*($B57<=tblListedesclasses[HEURE DE FIN]),tblListedesclasses[UNIQUE]),tblListedesclasses[UNIQUE],0),2),0)","v":0},{"$f":"IFERROR(INDEX(tblListedesclasses[],MATCH(SUMPRODUCT((tblListedesclasses[JOUR]=tblHoraires[[#Headers],[LUNDI]])*($B57>=tblListedesclasses[HEURE DE DÉBUT])*($B57<=tblListedesclasses[HEURE DE FIN]),tblListedesclasses[UNIQUE]),tblListedesclasses[UNIQUE],0),2),0)","v":0},{"$f":"IFERROR(INDEX(tblListedesclasses[],MATCH(SUMPRODUCT((tblListedesclasses[JOUR]=tblHoraires[[#Headers],[MARDI]])*($B57>=tblListedesclasses[HEURE DE DÉBUT])*($B57<=tblListedesclasses[HEURE DE FIN]),tblListedesclasses[UNIQUE]),tblListedesclasses[UNIQUE],0),2),0)","v":0},{"$f":"IFERROR(INDEX(tblListedesclasses[],MATCH(SUMPRODUCT((tblListedesclasses[JOUR]=tblHoraires[[#Headers],[MERCREDI]])*($B57>=tblListedesclasses[HEURE DE DÉBUT])*($B57<=tblListedesclasses[HEURE DE FIN]),tblListedesclasses[UNIQUE]),tblListedesclasses[UNIQUE],0),2),0)","v":0},{"$f":"IFERROR(INDEX(tblListedesclasses[],MATCH(SUMPRODUCT((tblListedesclasses[JOUR]=tblHoraires[[#Headers],[JEUDI]])*($B57>=tblListedesclasses[HEURE DE DÉBUT])*($B57<=tblListedesclasses[HEURE DE FIN]),tblListedesclasses[UNIQUE]),tblListedesclasses[UNIQUE],0),2),0)","v":0},{"$f":"IFERROR(INDEX(tblListedesclasses[],MATCH(SUMPRODUCT((tblListedesclasses[JOUR]=tblHoraires[[#Headers],[VENDREDI]])*($B57>=tblListedesclasses[HEURE DE DÉBUT])*($B57<=tblListedesclasses[HEURE DE FIN]),tblListedesclasses[UNIQUE]),tblListedesclasses[UNIQUE],0),2),0)","v":0},{"$f":"IFERROR(INDEX(tblListedesclasses[],MATCH(SUMPRODUCT((tblListedesclasses[JOUR]=tblHoraires[[#Headers],[SAMEDI]])*($B57>=tblListedesclasses[HEURE DE DÉBUT])*($B57<=tblListedesclasses[HEURE DE FIN]),tblListedesclasses[UNIQUE]),tblListedesclasses[UNIQUE],0),2),0)","v":0}]
[null,"21:15:00",{"$f":"IFERROR(INDEX(tblListedesclasses[],MATCH(SUMPRODUCT((tblListedesclasses[JOUR]=tblHoraires[[#Headers],[DIMANCHE]])*($B58>=tblListedesclasses[HEURE DE DÉBUT])*($B58<=tblListedesclasses[HEURE DE FIN]),tblListedesclasses[UNIQUE]),tblListedesclasses[UNIQUE],0),2),0)","v":0},{"$f":"IFERROR(INDEX(tblListedesclasses[],MATCH(SUMPRODUCT((tblListedesclasses[JOUR]=tblHoraires[[#Headers],[LUNDI]])*($B58>=tblListedesclasses[HEURE DE DÉBUT])*($B58<=tblListedesclasses[HEURE DE FIN]),tblListedesclasses[UNIQUE]),tblListedesclasses[UNIQUE],0),2),0)","v":0},{"$f":"IFERROR(INDEX(tblListedesclasses[],MATCH(SUMPRODUCT((tblListedesclasses[JOUR]=tblHoraires[[#Headers],[MARDI]])*($B58>=tblListedesclasses[HEURE DE DÉBUT])*($B58<=tblListedesclasses[HEURE DE FIN]),tblListedesclasses[UNIQUE]),tblListedesclasses[UNIQUE],0),2),0)","v":0},{"$f":"IFERROR(INDEX(tblListedesclasses[],MATCH(SUMPRODUCT((tblListedesclasses[JOUR]=tblHoraires[[#Headers],[MERCREDI]])*($B58>=tblListedesclasses[HEURE DE DÉBUT])*($B58<=tblListedesclasses[HEURE DE FIN]),tblListedesclasses[UNIQUE]),tblListedesclasses[UNIQUE],0),2),0)","v":0},{"$f":"IFERROR(INDEX(tblListedesclasses[],MATCH(SUMPRODUCT((tblListedesclasses[JOUR]=tblHoraires[[#Headers],[JEUDI]])*($B58>=tblListedesclasses[HEURE DE DÉBUT])*($B58<=tblListedesclasses[HEURE DE FIN]),tblListedesclasses[UNIQUE]),tblListedesclasses[UNIQUE],0),2),0)","v":0},{"$f":"IFERROR(INDEX(tblListedesclasses[],MATCH(SUMPRODUCT((tblListedesclasses[JOUR]=tblHoraires[[#Headers],[VENDREDI]])*($B58>=tblListedesclasses[HEURE DE DÉBUT])*($B58<=tblListedesclasses[HEURE DE FIN]),tblListedesclasses[UNIQUE]),tblListedesclasses[UNIQUE],0),2),0)","v":0},{"$f":"IFERROR(INDEX(tblListedesclasses[],MATCH(SUMPRODUCT((tblListedesclasses[JOUR]=tblHoraires[[#Headers],[SAMEDI]])*($B58>=tblListedesclasses[HEURE DE DÉBUT])*($B58<=tblListedesclasses[HEURE DE FIN]),tblListedesclasses[UNIQUE]),tblListedesclasses[UNIQUE],0),2),0)","v":0}]
[null,"21:30:00",{"$f":"IFERROR(INDEX(tblListedesclasses[],MATCH(SUMPRODUCT((tblListedesclasses[JOUR]=tblHoraires[[#Headers],[DIMANCHE]])*($B59>=tblListedesclasses[HEURE DE DÉBUT])*($B59<=tblListedesclasses[HEURE DE FIN]),tblListedesclasses[UNIQUE]),tblListedesclasses[UNIQUE],0),2),0)","v":0},{"$f":"IFERROR(INDEX(tblListedesclasses[],MATCH(SUMPRODUCT((tblListedesclasses[JOUR]=tblHoraires[[#Headers],[LUNDI]])*($B59>=tblListedesclasses[HEURE DE DÉBUT])*($B59<=tblListedesclasses[HEURE DE FIN]),tblListedesclasses[UNIQUE]),tblListedesclasses[UNIQUE],0),2),0)","v":0},{"$f":"IFERROR(INDEX(tblListedesclasses[],MATCH(SUMPRODUCT((tblListedesclasses[JOUR]=tblHoraires[[#Headers],[MARDI]])*($B59>=tblListedesclasses[HEURE DE DÉBUT])*($B59<=tblListedesclasses[HEURE DE FIN]),tblListedesclasses[UNIQUE]),tblListedesclasses[UNIQUE],0),2),0)","v":0},{"$f":"IFERROR(INDEX(tblListedesclasses[],MATCH(SUMPRODUCT((tblListedesclasses[JOUR]=tblHoraires[[#Headers],[MERCREDI]])*($B59>=tblListedesclasses[HEURE DE DÉBUT])*($B59<=tblListedesclasses[HEURE DE FIN]),tblListedesclasses[UNIQUE]),tblListedesclasses[UNIQUE],0),2),0)","v":0},{"$f":"IFERROR(INDEX(tblListedesclasses[],MATCH(SUMPRODUCT((tblListedesclasses[JOUR]=tblHoraires[[#Headers],[JEUDI]])*($B59>=tblListedesclasses[HEURE DE DÉBUT])*($B59<=tblListedesclasses[HEURE DE FIN]),tblListedesclasses[UNIQUE]),tblListedesclasses[UNIQUE],0),2),0)","v":0},{"$f":"IFERROR(INDEX(tblListedesclasses[],MATCH(SUMPRODUCT((tblListedesclasses[JOUR]=tblHoraires[[#Headers],[VENDREDI]])*($B59>=tblListedesclasses[HEURE DE DÉBUT])*($B59<=tblListedesclasses[HEURE DE FIN]),tblListedesclasses[UNIQUE]),tblListedesclasses[UNIQUE],0),2),0)","v":0},{"$f":"IFERROR(INDEX(tblListedesclasses[],MATCH(SUMPRODUCT((tblListedesclasses[JOUR]=tblHoraires[[#Headers],[SAMEDI]])*($B59>=tblListedesclasses[HEURE DE DÉBUT])*($B59<=tblListedesclasses[HEURE DE FIN]),tblListedesclasses[UNIQUE]),tblListedesclasses[UNIQUE],0),2),0)","v":0}]
[null,"21:45:00",{"$f":"IFERROR(INDEX(tblListedesclasses[],MATCH(SUMPRODUCT((tblListedesclasses[JOUR]=tblHoraires[[#Headers],[DIMANCHE]])*($B60>=tblListedesclasses[HEURE DE DÉBUT])*($B60<=tblListedesclasses[HEURE DE FIN]),tblListedesclasses[UNIQUE]),tblListedesclasses[UNIQUE],0),2),0)","v":0},{"$f":"IFERROR(INDEX(tblListedesclasses[],MATCH(SUMPRODUCT((tblListedesclasses[JOUR]=tblHoraires[[#Headers],[LUNDI]])*($B60>=tblListedesclasses[HEURE DE DÉBUT])*($B60<=tblListedesclasses[HEURE DE FIN]),tblListedesclasses[UNIQUE]),tblListedesclasses[UNIQUE],0),2),0)","v":0},{"$f":"IFERROR(INDEX(tblListedesclasses[],MATCH(SUMPRODUCT((tblListedesclasses[JOUR]=tblHoraires[[#Headers],[MARDI]])*($B60>=tblListedesclasses[HEURE DE DÉBUT])*($B60<=tblListedesclasses[HEURE DE FIN]),tblListedesclasses[UNIQUE]),tblListedesclasses[UNIQUE],0),2),0)","v":0},{"$f":"IFERROR(INDEX(tblListedesclasses[],MATCH(SUMPRODUCT((tblListedesclasses[JOUR]=tblHoraires[[#Headers],[MERCREDI]])*($B60>=tblListedesclasses[HEURE DE DÉBUT])*($B60<=tblListedesclasses[HEURE DE FIN]),tblListedesclasses[UNIQUE]),tblListedesclasses[UNIQUE],0),2),0)","v":0},{"$f":"IFERROR(INDEX(tblListedesclasses[],MATCH(SUMPRODUCT((tblListedesclasses[JOUR]=tblHoraires[[#Headers],[JEUDI]])*($B60>=tblListedesclasses[HEURE DE DÉBUT])*($B60<=tblListedesclasses[HEURE DE FIN]),tblListedesclasses[UNIQUE]),tblListedesclasses[UNIQUE],0),2),0)","v":0},{"$f":"IFERROR(INDEX(tblListedesclasses[],MATCH(SUMPRODUCT((tblListedesclasses[JOUR]=tblHoraires[[#Headers],[VENDREDI]])*($B60>=tblListedesclasses[HEURE DE DÉBUT])*($B60<=tblListedesclasses[HEURE DE FIN]),tblListedesclasses[UNIQUE]),tblListedesclasses[UNIQUE],0),2),0)","v":0},{"$f":"IFERROR(INDEX(tblListedesclasses[],MATCH(SUMPRODUCT((tblListedesclasses[JOUR]=tblHoraires[[#Headers],[SAMEDI]])*($B60>=tblListedesclasses[HEURE DE DÉBUT])*($B60<=tblListedesclasses[HEURE DE FIN]),tblListedesclasses[UNIQUE]),tblListedesclasses[UNIQUE],0),2),0)","v":0}]
[null,"22:00:00",{"$f":"IFERROR(INDEX(tblListedesclasses[],MATCH(SUMPRODUCT((tblListedesclasses[JOUR]=tblHoraires[[#Headers],[DIMANCHE]])*($B61>=tblListedesclasses[HEURE DE DÉBUT])*($B61<=tblListedesclasses[HEURE DE FIN]),tblListedesclasses[UNIQUE]),tblListedesclasses[UNIQUE],0),2),0)","v":0},{"$f":"IFERROR(INDEX(tblListedesclasses[],MATCH(SUMPRODUCT((tblListedesclasses[JOUR]=tblHoraires[[#Headers],[LUNDI]])*($B61>=tblListedesclasses[HEURE DE DÉBUT])*($B61<=tblListedesclasses[HEURE DE FIN]),tblListedesclasses[UNIQUE]),tblListedesclasses[UNIQUE],0),2),0)","v":0},{"$f":"IFERROR(INDEX(tblListedesclasses[],MATCH(SUMPRODUCT((tblListedesclasses[JOUR]=tblHoraires[[#Headers],[MARDI]])*($B61>=tblListedesclasses[HEURE DE DÉBUT])*($B61<=tblListedesclasses[HEURE DE FIN]),tblListedesclasses[UNIQUE]),tblListedesclasses[UNIQUE],0),2),0)","v":0},{"$f":"IFERROR(INDEX(tblListedesclasses[],MATCH(SUMPRODUCT((tblListedesclasses[JOUR]=tblHoraires[[#Headers],[MERCREDI]])*($B61>=tblListedesclasses[HEURE DE DÉBUT])*($B61<=tblListedesclasses[HEURE DE FIN]),tblListedesclasses[UNIQUE]),tblListedesclasses[UNIQUE],0),2),0)","v":0},{"$f":"IFERROR(INDEX(tblListedesclasses[],MATCH(SUMPRODUCT((tblListedesclasses[JOUR]=tblHoraires[[#Headers],[JEUDI]])*($B61>=tblListedesclasses[HEURE DE DÉBUT])*($B61<=tblListedesclasses[HEURE DE FIN]),tblListedesclasses[UNIQUE]),tblListedesclasses[UNIQUE],0),2),0)","v":0},{"$f":"IFERROR(INDEX(tblListedesclasses[],MATCH(SUMPRODUCT((tblListedesclasses[JOUR]=tblHoraires[[#Headers],[VENDREDI]])*($B61>=tblListedesclasses[HEURE DE DÉBUT])*($B61<=tblListedesclasses[HEURE DE FIN]),tblListedesclasses[UNIQUE]),tblListedesclasses[UNIQUE],0),2),0)","v":0},{"$f":"IFERROR(INDEX(tblListedesclasses[],MATCH(SUMPRODUCT((tblListedesclasses[JOUR]=tblHoraires[[#Headers],[SAMEDI]])*($B61>=tblListedesclasses[HEURE DE DÉBUT])*($B61<=tblListedesclasses[HEURE DE FIN]),tblListedesclasses[UNIQUE]),tblListedesclasses[UNIQUE],0),2),0)","v":0}]
[null,"22:15:00",{"$f":"IFERROR(INDEX(tblListedesclasses[],MATCH(SUMPRODUCT((tblListedesclasses[JOUR]=tblHoraires[[#Headers],[DIMANCHE]])*($B62>=tblListedesclasses[HEURE DE DÉBUT])*($B62<=tblListedesclasses[HEURE DE FIN]),tblListedesclasses[UNIQUE]),tblListedesclasses[UNIQUE],0),2),0)","v":0},{"$f":"IFERROR(INDEX(tblListedesclasses[],MATCH(SUMPRODUCT((tblListedesclasses[JOUR]=tblHoraires[[#Headers],[LUNDI]])*($B62>=tblListedesclasses[HEURE DE DÉBUT])*($B62<=tblListedesclasses[HEURE DE FIN]),tblListedesclasses[UNIQUE]),tblListedesclasses[UNIQUE],0),2),0)","v":0},{"$f":"IFERROR(INDEX(tblListedesclasses[],MATCH(SUMPRODUCT((tblListedesclasses[JOUR]=tblHoraires[[#Headers],[MARDI]])*($B62>=tblListedesclasses[HEURE DE DÉBUT])*($B62<=tblListedesclasses[HEURE DE FIN]),tblListedesclasses[UNIQUE]),tblListedesclasses[UNIQUE],0),2),0)","v":0},{"$f":"IFERROR(INDEX(tblListedesclasses[],MATCH(SUMPRODUCT((tblListedesclasses[JOUR]=tblHoraires[[#Headers],[MERCREDI]])*($B62>=tblListedesclasses[HEURE DE DÉBUT])*($B62<=tblListedesclasses[HEURE DE FIN]),tblListedesclasses[UNIQUE]),tblListedesclasses[UNIQUE],0),2),0)","v":0},{"$f":"IFERROR(INDEX(tblListedesclasses[],MATCH(SUMPRODUCT((tblListedesclasses[JOUR]=tblHoraires[[#Headers],[JEUDI]])*($B62>=tblListedesclasses[HEURE DE DÉBUT])*($B62<=tblListedesclasses[HEURE DE FIN]),tblListedesclasses[UNIQUE]),tblListedesclasses[UNIQUE],0),2),0)","v":0},{"$f":"IFERROR(INDEX(tblListedesclasses[],MATCH(SUMPRODUCT((tblListedesclasses[JOUR]=tblHoraires[[#Headers],[VENDREDI]])*($B62>=tblListedesclasses[HEURE DE DÉBUT])*($B62<=tblListedesclasses[HEURE DE FIN]),tblListedesclasses[UNIQUE]),tblListedesclasses[UNIQUE],0),2),0)","v":0},{"$f":"IFERROR(INDEX(tblListedesclasses[],MATCH(SUMPRODUCT((tblListedesclasses[JOUR]=tblHoraires[[#Headers],[SAMEDI]])*($B62>=tblListedesclasses[HEURE DE DÉBUT])*($B62<=tblListedesclasses[HEURE DE FIN]),tblListedesclasses[UNIQUE]),tblListedesclasses[UNIQUE],0),2),0)","v":0}]
[null,"22:30:00",{"$f":"IFERROR(INDEX(tblListedesclasses[],MATCH(SUMPRODUCT((tblListedesclasses[JOUR]=tblHoraires[[#Headers],[DIMANCHE]])*($B63>=tblListedesclasses[HEURE DE DÉBUT])*($B63<=tblListedesclasses[HEURE DE FIN]),tblListedesclasses[UNIQUE]),tblListedesclasses[UNIQUE],0),2),0)","v":0},{"$f":"IFERROR(INDEX(tblListedesclasses[],MATCH(SUMPRODUCT((tblListedesclasses[JOUR]=tblHoraires[[#Headers],[LUNDI]])*($B63>=tblListedesclasses[HEURE DE DÉBUT])*($B63<=tblListedesclasses[HEURE DE FIN]),tblListedesclasses[UNIQUE]),tblListedesclasses[UNIQUE],0),2),0)","v":0},{"$f":"IFERROR(INDEX(tblListedesclasses[],MATCH(SUMPRODUCT((tblListedesclasses[JOUR]=tblHoraires[[#Headers],[MARDI]])*($B63>=tblListedesclasses[HEURE DE DÉBUT])*($B63<=tblListedesclasses[HEURE DE FIN]),tblListedesclasses[UNIQUE]),tblListedesclasses[UNIQUE],0),2),0)","v":0},{"$f":"IFERROR(INDEX(tblListedesclasses[],MATCH(SUMPRODUCT((tblListedesclasses[JOUR]=tblHoraires[[#Headers],[MERCREDI]])*($B63>=tblListedesclasses[HEURE DE DÉBUT])*($B63<=tblListedesclasses[HEURE DE FIN]),tblListedesclasses[UNIQUE]),tblListedesclasses[UNIQUE],0),2),0)","v":0},{"$f":"IFERROR(INDEX(tblListedesclasses[],MATCH(SUMPRODUCT((tblListedesclasses[JOUR]=tblHoraires[[#Headers],[JEUDI]])*($B63>=tblListedesclasses[HEURE DE DÉBUT])*($B63<=tblListedesclasses[HEURE DE FIN]),tblListedesclasses[UNIQUE]),tblListedesclasses[UNIQUE],0),2),0)","v":0},{"$f":"IFERROR(INDEX(tblListedesclasses[],MATCH(SUMPRODUCT((tblListedesclasses[JOUR]=tblHoraires[[#Headers],[VENDREDI]])*($B63>=tblListedesclasses[HEURE DE DÉBUT])*($B63<=tblListedesclasses[HEURE DE FIN]),tblListedesclasses[UNIQUE]),tblListedesclasses[UNIQUE],0),2),0)","v":0},{"$f":"IFERROR(INDEX(tblListedesclasses[],MATCH(SUMPRODUCT((tblListedesclasses[JOUR]=tblHoraires[[#Headers],[SAMEDI]])*($B63>=tblListedesclasses[HEURE DE DÉBUT])*($B63<=tblListedesclasses[HEURE DE FIN]),tblListedesclasses[UNIQUE]),tblListedesclasses[UNIQUE],0),2),0)","v":0}]
[null,"22:45:00",{"$f":"IFERROR(INDEX(tblListedesclasses[],MATCH(SUMPRODUCT((tblListedesclasses[JOUR]=tblHoraires[[#Headers],[DIMANCHE]])*($B64>=tblListedesclasses[HEURE DE DÉBUT])*($B64<=tblListedesclasses[HEURE DE FIN]),tblListedesclasses[UNIQUE]),tblListedesclasses[UNIQUE],0),2),0)","v":0},{"$f":"IFERROR(INDEX(tblListedesclasses[],MATCH(SUMPRODUCT((tblListedesclasses[JOUR]=tblHoraires[[#Headers],[LUNDI]])*($B64>=tblListedesclasses[HEURE DE DÉBUT])*($B64<=tblListedesclasses[HEURE DE FIN]),tblListedesclasses[UNIQUE]),tblListedesclasses[UNIQUE],0),2),0)","v":0},{"$f":"IFERROR(INDEX(tblListedesclasses[],MATCH(SUMPRODUCT((tblListedesclasses[JOUR]=tblHoraires[[#Headers],[MARDI]])*($B64>=tblListedesclasses[HEURE DE DÉBUT])*($B64<=tblListedesclasses[HEURE DE FIN]),tblListedesclasses[UNIQUE]),tblListedesclasses[UNIQUE],0),2),0)","v":0},{"$f":"IFERROR(INDEX(tblListedesclasses[],MATCH(SUMPRODUCT((tblListedesclasses[JOUR]=tblHoraires[[#Headers],[MERCREDI]])*($B64>=tblListedesclasses[HEURE DE DÉBUT])*($B64<=tblListedesclasses[HEURE DE FIN]),tblListedesclasses[UNIQUE]),tblListedesclasses[UNIQUE],0),2),0)","v":0},{"$f":"IFERROR(INDEX(tblListedesclasses[],MATCH(SUMPRODUCT((tblListedesclasses[JOUR]=tblHoraires[[#Headers],[JEUDI]])*($B64>=tblListedesclasses[HEURE DE DÉBUT])*($B64<=tblListedesclasses[HEURE DE FIN]),tblListedesclasses[UNIQUE]),tblListedesclasses[UNIQUE],0),2),0)","v":0},{"$f":"IFERROR(INDEX(tblListedesclasses[],MATCH(SUMPRODUCT((tblListedesclasses[JOUR]=tblHoraires[[#Headers],[VENDREDI]])*($B64>=tblListedesclasses[HEURE DE DÉBUT])*($B64<=tblListedesclasses[HEURE DE FIN]),tblListedesclasses[UNIQUE]),tblListedesclasses[UNIQUE],0),2),0)","v":0},{"$f":"IFERROR(INDEX(tblListedesclasses[],MATCH(SUMPRODUCT((tblListedesclasses[JOUR]=tblHoraires[[#Headers],[SAMEDI]])*($B64>=tblListedesclasses[HEURE DE DÉBUT])*($B64<=tblListedesclasses[HEURE DE FIN]),tblListedesclasses[UNIQUE]),tblListedesclasses[UNIQUE],0),2),0)","v":0}]

{"sheet":"Liste des interventions","index":1,"n_rows":13,"n_cols":8,"rows_kept":13,"cut":false,"hidden":false,"merged":[[1,1,1,5],[1,6,1,7]]}
[]
[null,"Liste des interventions"]
[null,"Quoi","Intervenant","JOUR","LIEU","HEURE DE DÉBUT","HEURE DE FIN","UNIQUE"]
[null,"Aide pour les courses","Alice","LUNDI","au village","09:00:00","10:00:00",{"$f":"ROW()-ROW(tblListedesclasses[[#Headers],[UNIQUE]])","v":1}]
[null," Aide pour les courses","Bruno","VENDREDI","Super marché","16:30:00","17:30:00",{"$f":"ROW()-ROW(tblListedesclasses[[#Headers],[UNIQUE]])","v":2}]
[null,"Visites d'amitié","Charles","MERCREDI","à domicile","13:00:00","15:00:00",{"$f":"ROW()-ROW(tblListedesclasses[[#Headers],[UNIQUE]])","v":3}]
[null,"Ménage","Maria","LUNDI","à domicile","16:00:00","17:00:00",{"$f":"ROW()-ROW(tblListedesclasses[[#Headers],[UNIQUE]])","v":4}]
[null,"Soins","Spitex","MARDI","à domicile","11:00:00","12:00:00",{"$f":"ROW()-ROW(tblListedesclasses[[#Headers],[UNIQUE]])","v":5}]
[null,"Soins","Spitex","VENDREDI","à domicile","09:00:00","09:30:00",{"$f":"ROW()-ROW(tblListedesclasses[[#Headers],[UNIQUE]])","v":6}]
[null,"Repas livré","Ass. Repas","JEUDI","à domicile","12:30:00","13:00:00",{"$f":"ROW()-ROW(tblListedesclasses[[#Headers],[UNIQUE]])","v":7}]
[null,"Repas livré","Ass. Repas","LUNDI","à domicile","12:30:00","13:00:00",{"$f":"ROW()-ROW(tblListedesclasses[[#Headers],[UNIQUE]])","v":8}]
[null,"Repas ailleurs","Eglise","MERCREDI","Cure","12:00:00","14:00:00",{"$f":"ROW()-ROW(tblListedesclasses[[#Headers],[UNIQUE]])","v":9}]
[null,"Prendre des nouvelles","Moi","DIMANCHE","à domicile","19:00:00","20:00:00",{"$f":"ROW()-ROW(tblListedesclasses[[#Headers],[UNIQUE]])","v":10}]